Cogmind - Beta 16 @@@ ROGUE MODE // 2026.01.24 @ 23:23:19 Player: Mediocre Result: Destroyed 0b10! Performance ------------- Evolutions (9) 4500 Regions Visited (39) 7800 Robots Destroyed (508) 2540 Value Destroyed (17904) 17904 Prototype IDs (368) 7360 Alien Tech Used (12) 2400 Bonus (60310) 60310 TOTAL SCORE: 102814 Bonus ------- Triggered Max Security 2000 High Alert Combat Kills 714 Follower Combat Kills 3484 Destroyed Unchained 3000 Network Hubs Disabled 800 Met Data Miner 300 Met Zhirov 300 Met Warlord at Base 500 MAIN.C Attacked Warlord 500 Built Enhanced Grunts 300 A7 Reached Mainframe 300 Met R17 at Cetus 500 Used Core Reset Matrix 3000 Hacked Protovariant 500 Met R17 at Research 2000 Met Warlord at Research 2000 Acquired SGEMP 2000 Met Sigix 2000 Activated Exoskeleton 3000 Escaped with Exo-Sigix 10000 Destroyed MAIN.C Guards 500 Met MAIN.C 5000 Destroyed MAIN.C Shell 5000 Destroyed MAIN.C 10000 Win 3000 Friendly Fire -388 Cogmind --------- Core Integrity 1850/1850 Matter 300/300 Energy 344/350 System Corruption 0% Temperature Cool (14) Movement Flying (17) Location Tau Ceti IV Orbit Parts ------- > --- POWER (2) -------- Backup Power VII > --- PROPULSION (9) --- Electron Diverter Improved Diametric Drive Improved Diametric Drive Cooled Impulse Thruster Cooled Impulse Thruster Cooled Impulse Thruster Cooled Impulse Thruster Impulse Thruster Array > --- UTILITY (12) ----- Experimental Cooling System Large Storage Unit Spectral Analyzer Experimental Sensor Array Advanced Signal Interpreter Experimental Core Analyzer Experimental Armor Integrity Analyzer Centrium Light Armor Plating Experimental Powered Armor Experimental Powered Armor Deep Network Scanner Deep Network Scanner > --- WEAPON (3) ------- Sigix Shearcannon Plasma Lance > --- INVENTORY (15) --- Micro Antimatter Reactor Light Quantum Reactor Cooled Impulse Thruster Experimental Sensor Array Centrium Light Armor Plating Centrium Light Armor Plating Centrium Medium Armor Plating Transdimensional Reconstructor Cooled Nova Cannon Perforator Hellfire Missile Launcher Kinetic Spear Peak State ------------ > --- POWER ------------ Backup Power VII Backup Power VII > --- PROPULSION ------- Improved Diametric Drive Improved Diametric Drive Cooled Impulse Thruster Cooled Impulse Thruster Cooled Impulse Thruster Cooled Impulse Thruster Cooled Impulse Thruster Impulse Thruster Array > --- UTILITY ---------- Large Storage Unit Spectral Analyzer Experimental Sensor Array Advanced Signal Interpreter Advanced Target Analyzer Experimental Core Analyzer Centrium Light Armor Plating Centrium Light Armor Plating Centrium Light Armor Plating Centrium Medium Armor Plating Deep Network Scanner Deep Network Scanner > --- WEAPON ----------- Sigix Shearcannon Plasma Lance > --- INVENTORY -------- Micro Antimatter Reactor Light Quantum Reactor Electron Diverter Experimental Sensor Array Transdimensional Reconstructor Cooled Nova Cannon Perforator Hellfire Missile Launcher Kinetic Spear [Rating: 236] Favorites ----------- Power Backup Power VII Engine Light Angular Momentum Engine Power Core Backup Power VII Reactor Light Quantum Reactor Propulsion Cooled Impulse Thruster Treads Light Treads Flight Unit Cooled Impulse Thruster Utility Advanced Hacking Suite Device Advanced Sensor Array Storage Large Storage Unit Processor Advanced Signal Interpreter Hackware Advanced Hacking Suite Protection Powered Armor Weapon Spear Energy Gun Beam Rifle Energy Cannon Beam Cannon Ballistic Gun Heavy Assault Rifle Ballistic Cannon Hypervelocity Gauss Cannon Launcher Heavy Missile Launcher Special Weapon Mining Laser Slashing Weapon Molecular Scythe Piercing Weapon Spear Special Melee Weapon Advanced Datajack Build | -11 -10 -10 -9 -9 -8 -8 -7 -7 -7 -7 -7 -7 -6 -6 -6 -6 -6 -6 -6 -6 -5 -5 -5 -5 -5 -5 -4 -4 -4 -4 -4 -3 -3 -3 -2 -2 -2 -1 -1 ------- Run | Yrd Mat Min Mat Min Mat Sto Fac Was Fac Low Low Dat Pro Fac Was Fac Ext Cet Arc Hub Fac Was Fac Upp Upp War Pro Fac Upp Upp Zhi Pro Res Tes Res Qua Sec Acc Com Slots Evolved 18 | . . . 2 . 2 . 2 . . . . . . 2 . . . . . . 2 . . . . . . 2 . . . . 2 . 2 . . 2 . Power 1 | . . . . . . . . . . . . . . . . . . . . . 1 . . . . . . . . . . . . . . . . . . Propulsion 7 | . . . 1 . 1 . . . . . . . . 1 . . . . . . . . . . . . . 1 . . . . 1 . 1 . . 1 . Utility 10 | . . . 1 . 1 . 2 . . . . . . 1 . . . . . . 1 . . . . . . 1 . . . . 1 . 1 . . 1 . Weapon . | . . . . . . . . . . . . . . . . . . . . . . . . . . . . . . . . . . . . . . . . Parts Attached 238 | 4 15 3 25 . 22 36 16 2 2 1 . 1 . 3 . 15 3 2 5 1 9 . 11 . . 4 . 5 . 3 1 . 17 8 7 2 6 3 6 Power 34 | . 3 1 1 . 3 4 1 . . 1 . . . 1 . 2 1 1 1 . . . 2 . . . . . . 1 . . 3 4 2 1 1 . . Engine 14 | . 3 1 1 . 1 3 . . . . . . . 1 . 1 1 1 1 . . . . . . . . . . . . . . . . . . . . Core 11 | . . . . . 2 1 1 . . 1 . . . . . 1 . . . . . . 1 . . . . . . 1 . . 2 1 . . . . . Reactor 9 | . . . . . . . . . . . . . . . . . . . . . . . 1 . . . . . . . . . 1 3 2 1 1 . . Propulsion 64 | 2 3 1 11 . 9 16 3 . 1 . . . . 1 . . 1 . . . 4 . 2 . . 1 . 1 . . . . 4 1 2 . 1 . . Treads 37 | 2 3 1 10 . 9 12 . . . . . . . . . . . . . . . . . . . . . . . . . . . . . . . . . Leg . | . . . . . . . . . . . . . . . . . . . . . . . . . . . . . . . . . . . . . . . . Wheel . | . . . . . . . . . . . . . . . . . . . . . . . . . . . . . . . . . . . . . . . . Hover . | . . . . . . . . . . . . . . . . . . . . . . . . . . . . . . . . . . . . . . . . Flight 27 | . . . 1 . . 4 3 . 1 . . . . 1 . . 1 . . . 4 . 2 . . 1 . 1 . . . . 4 1 2 . 1 . . Utility 84 | . 4 . 7 . 4 10 10 1 1 . . 1 . 1 . 7 1 1 1 1 3 . 6 . . 2 . 3 . . 1 . 5 . 2 . 4 3 5 Device 30 | . 2 . 2 . 1 4 2 1 . . . . . . . 4 1 . . . . . 4 . . 1 . 2 . . . . 4 . 1 . . . 1 Storage 5 | . 2 . 1 . . . . . . . . . . . . . . . . . . . . . . . . . . . . . 1 . 1 . . . . Processor 12 | . . . . . . 1 2 . 1 . . . . . . 1 . . . 1 1 . 1 . . 1 . . . . . . . . . . 1 . 2 Hackware 16 | . . . . . . 1 3 . . . . 1 . 1 . 2 . . 1 . 2 . 1 . . . . 1 . . . . . . . . . 3 . Protection 21 | . . . 4 . 3 4 3 . . . . . . . . . . 1 . . . . . . . . . . . . 1 . . . . . 3 . 2 Artifact . | . . . . . . . . . . . . . . . . . . . . . . . . . . . . . . . . . . . . . . . . Weapon 56 | 2 5 1 6 . 6 6 2 1 . . . . . . . 6 . . 3 . 2 . 1 . . 1 . 1 . 2 . . 5 3 1 1 . . 1 Energy Gun 4 | 1 2 . . . . . . . . . . . . . . . . . . . . . . . . 1 . . . . . . . . . . . . . Energy Cannon 6 | . 1 . 1 . 1 . . . . . . . . . . . . . . . . . . . . . . . . . . . . 2 . . . . 1 Ballistic Gun 17 | 1 1 . 3 . 5 4 1 . . . . . . . . 1 . . . . . . . . . . . . . 1 . . . . . . . . . Ballistic Cannon 4 | . 1 . . . . 1 . . . . . . . . . 1 . . . . . . . . . . . . . . . . . 1 . . . . . Launcher 4 | . . . 1 . . . . 1 . . . . . . . . . . . . 1 . . . . . . . . . . . 1 . . . . . . Special Weapon 1 | . . 1 . . . . . . . . . . . . . . . . . . . . . . . . . . . . . . . . . . . . . Impact Weapon . | . . . . . . . . . . . . . . . . . . . . . . . . . . . . . . . . . . . . . . . . Slashing Weapon 4 | . . . . . . 1 . . . . . . . . . . . . . . . . . . . . . . . 1 . . 2 . . . . . . Piercing Weapon 7 | . . . . . . . 1 . . . . . . . . . . . . . 1 . 1 . . . . . . . . . 2 . 1 1 . . . Special Melee Weapon 9 | . . . 1 . . . . . . . . . . . . 4 . . 3 . . . . . . . . 1 . . . . . . . . . . . Unidentified Prototypes 35 | . . . 2 . . 3 . . . 1 . . . . . 4 . 1 . . 2 . 5 . . 3 . 1 . . 2 . 4 2 . 2 1 2 . Parts Lost 23 | . 3 . 2 . . 6 3 . . . . . . . . 1 . . . 1 . . . . . . . 3 1 . . . 1 1 . . 1 . . Power 7 | . 2 . . . . 2 1 . . . . . . . . . . . . . . . . . . . . 1 . . . . . 1 . . . . . Propulsion 2 | . . . . . . 1 . . . . . . . . . . . . . . . . . . . . . . 1 . . . . . . . . . . Utility 9 | . 1 . 1 . . 2 2 . . . . . . . . . . . . . . . . . . . . 1 . . . . 1 . . . 1 . . Weapon 5 | . . . 1 . . 1 . . . . . . . . . 1 . . . 1 . . . . . . . 1 . . . . . . . . . . . Highest Loss Streak 4 | . 1 . 1 . . 2 2 . . . . . . . . 1 . . . 1 . . . . . . . 3 4 . . . 1 1 . . 1 . . To Critical Strikes . | . . . . . . . . . . . . . . . . . . . . . . . . . . . . . . . . . . . . . . . . Average Backups 8 | 1 9 9 10 15 14 14 4 4 4 5 4 4 5 4 5 4 4 5 5 5 4 5 4 5 5 5 5 4 5 4 5 5 6 8 9 11 9 9 10 Power . | . . . . . . . . . . . . . . . 1 1 1 . . . . . . . . . . . . . . . . . 1 1 1 1 1 Propulsion 2 | . 3 2 3 6 4 4 . 1 1 2 2 1 1 . 1 1 . 1 1 1 . 1 1 1 1 1 1 . . . . . . 1 2 2 2 2 1 Utility 1 | . . . 1 4 4 4 1 1 1 1 1 1 2 1 1 . 1 1 2 2 1 2 1 2 2 1 1 . 1 1 2 2 2 1 1 2 1 1 2 Weapon 3 | . 4 6 5 4 4 3 1 2 1 2 1 2 2 2 2 1 2 1 1 1 2 2 1 2 2 2 2 2 3 2 2 2 2 3 4 3 3 4 4 Tool/Special . | . . . . . . . . . . . . . . . . . . . . . . . . . . . . . . . . . . . . . . . . Unused Backups 31 | . 1 . 10 . 3 4 2 1 . . . . . . . 1 . 1 . . . . . . . 1 . . . . . . 1 2 . 1 . . 3 Power 3 | . . . . . . . . 1 . . . . . . . . . 1 . . . . . . . . . . . . . . . . . . . . 1 Propulsion 8 | . . . 3 . . 2 1 . . . . . . . . 1 . . . . . . . . . . . . . . . . . 1 . . . . . Utility 8 | . . . 1 . 3 1 . . . . . . . . . . . . . . . . . . . 1 . . . . . . 1 . . . . . 1 Weapon 11 | . 1 . 6 . . 1 1 . . . . . . . . . . . . . . . . . . . . . . . . . . 1 . 1 . . . Tool/Special 1 | . . . . . . . . . . . . . . . . . . . . . . . . . . . . . . . . . . . . . . . 1 Average Slot Usage (%) 96 | . 97 100 99 100 90 96 99 100 100 97 92 92 92 92 93 97 100 100 100 98 97 100 98 100 100 99 100 95 75 83 87 90 90 99 92 91 84 83 87 Engine 4 | . 13 14 11 11 4 7 . . . . . . . 2 6 3 6 6 6 6 . . . . . . . . . . . . . . . . . . . Core 4 | . . . . . 4 1 6 7 7 7 7 7 7 3 . 2 . . . . 10 11 11 11 11 11 11 9 5 8 10 10 8 3 . . . . 3 Treads 12 | . 28 28 32 33 35 34 . . . . . . . . . . . . . . . . . . . . . . . . . . . . . . . . . Flight 18 | . . . . . . . 30 30 30 29 28 28 28 30 31 31 31 31 31 31 27 27 26 27 27 27 27 29 25 25 25 25 24 31 30 29 29 26 29 Device 8 | . 12 14 11 11 9 9 5 7 7 7 7 7 7 6 6 6 6 6 6 6 4 5 6 5 5 4 5 7 5 5 5 5 9 9 10 12 5 3 3 Storage 4 | . 13 14 11 11 9 9 . . . . . . . . . . . . . . . . . . . . . . . . . . 1 4 4 4 4 3 3 Processor 7 | . . . . . . . 11 15 15 14 14 14 14 12 12 12 12 12 12 12 11 11 11 11 11 11 11 10 10 10 10 10 9 9 8 8 11 11 14 Hackware 11 | . . . . . . . 19 15 15 14 14 14 14 18 18 17 18 18 18 18 20 22 18 22 22 22 22 21 20 20 20 20 18 18 16 16 13 10 7 Protection 6 | . . . 9 11 9 15 6 6 6 7 7 7 7 6 6 5 5 6 6 6 4 5 5 5 5 5 5 4 5 5 7 10 4 3 4 3 8 15 14 Energy Cannon 1 | . 7 12 2 . 1 . . . . . . . . . . . . . . . . . . . . . . . . . . . . . . . . . 2 Ballistic Gun 6 | . 13 10 19 22 16 16 . . . . . . . . . . . . . . . . . . . . . . . 2 . . . . . . . . . Piercing Weapon 3 | . . . . . . . 6 6 7 7 7 7 6 6 6 5 5 6 6 4 10 11 8 11 10 10 6 4 . . . . 1 3 5 6 6 6 3 Special Melee Weapon 3 | . . . . . . . 6 7 6 7 7 7 7 6 6 10 12 10 11 10 4 5 4 5 5 5 5 5 5 5 5 5 3 4 3 1 . . . Peak Build Rating 236 | 4 10 8 24 22 34 35 53 52 55 52 55 57 59 74 73 87 82 85 91 94 124 124 134 134 134 139 139 158 126 130 131 131 173 185 201 202 201 224 236 Average Rating 79 | 2 7 8 17 22 32 28 44 50 51 51 51 51 57 71 73 78 80 81 89 91 107 124 123 134 134 133 137 148 117 123 126 131 151 173 185 189 187 204 226 On Entrance 93 | . 4 8 8 22 22 33 33 50 50 52 51 51 57 57 73 73 80 80 81 91 86 124 124 134 134 134 134 139 126 117 124 131 131 173 175 193 188 193 204 Avg Prop Armor Cover (%) 4 | 22 26 . . . . . . . . . . . . 1 . . . . . . . . . . . . . 1 2 . . . . . . . . . . Naked Turns . | . . . . . . . . . . . . . . . . . . . . . . . . . . . . . . . . . . . . . . . . Heaviest Build 78 | 3 22 22 40 40 58 56 25 25 26 20 26 19 24 23 23 29 32 33 33 32 33 25 34 22 22 22 28 30 13 33 22 22 48 53 66 74 69 68 78 Greatest Support 90 | 3 40 40 64 64 88 88 24 26 28 20 26 28 26 25 31 35 35 33 33 33 47 44 50 50 50 35 50 57 35 47 35 47 52 62 67 76 90 78 78 Greatest Overweight (x) 8 | . . . . . . 1 1 . . . . . . . . 1 1 . . 1 1 8 . . . . . . . . . . . 1 . . . . . Average Overweight (x) . | . . . . . . . . . . . . . . . . . . . . . . . . . . . . . . . . . . . . . . . . Largest Inventory Capacity 15 | 5 10 10 15 15 15 15 5 5 5 5 5 5 5 5 5 5 5 5 5 5 5 5 5 5 5 5 5 5 5 5 5 5 10 10 15 15 15 15 15 Average Capacity 8 | 5 9 10 11 15 15 14 5 5 5 5 5 5 5 5 5 5 5 5 5 5 5 5 5 5 5 5 5 5 5 5 5 5 7 10 14 15 15 15 15 Most Carried 15 | 3 10 10 15 15 15 15 5 5 5 5 5 5 5 5 5 5 5 5 5 5 5 5 5 5 5 5 5 5 5 5 5 5 10 10 15 15 15 14 15 Average Carried 8 | 1 9 9 10 15 14 14 4 4 4 5 4 4 5 4 5 4 4 4 5 5 4 5 4 5 5 4 4 4 5 4 4 5 6 9 13 14 14 11 11 Final Capacity 15 | 5 10 10 15 15 15 5 5 5 5 5 5 5 5 5 5 5 5 5 5 5 5 5 5 5 5 5 5 5 5 5 5 5 10 10 15 15 15 15 15 Final Carried 15 | 3 9 10 15 15 15 5 5 4 5 5 5 5 5 5 5 5 5 5 5 5 5 5 5 5 5 5 5 5 5 5 5 5 10 10 15 15 13 11 13 Class Distribution -------------------- 25% | Wizard-Scout 21% | Scavenger-Mutant 19% | Hacker-Scout 16% | Mutant 4% | Alien-Scout 3% | Machinist-Scout 3% | Hacker-Sprinter 3% | Commander-Scout Dominant Class ---------------- Scavenger-Mutant | -10/Materials Mutant | -10/Mines Scavenger-Mutant | -9/Materials Scavenger-Mutant | -9/Mines Mutant | -8/Materials Scavenger-Mutant | -8/Storage Hacker-Scout | -7/Factory Hacker-Scout | -7/Waste Machinist-Scout | -7/Factory Machinist-Scout | -7/Lower Caves Machinist-Scout | -7/Lower Caves Machinist-Scout | -7/Data Miner Hacker-Scout | -6/Proximity Caves Hacker-Scout | -6/Factory Hacker-Scout | -6/Waste Hacker-Scout | -6/Factory Hacker-Scout | -6/Extension Commander-Scout | -6/Cetus Commander-Scout | -6/Archives Hacker-Scout | -6/Hub_04(d) Wizard-Scout | -5/Factory Wizard-Scout | -5/Waste Hacker-Scout | -5/Factory Wizard-Scout | -5/Upper Caves Wizard-Scout | -5/Upper Caves Wizard-Scout | -5/Warlord Wizard-Scout | -4/Proximity Caves Wizard-Scout | -4/Factory Wizard-Sprinter | -4/Upper Caves Wizard-Sprinter | -4/Upper Caves Wizard-Sprinter | -4/Zhirov Wizard-Sprinter | -3/Proximity Caves Wizard-Scout | -3/Research Wizard-Scout | -3/Testing Wizard-Scout | -2/Research Wizard-Scout | -2/Quarantine Alien-Scout | -2/Section 7 Wizard-Scout | -1/Access Alien-Scout | -1/Command Resources | -11 -10 -10 -9 -9 -8 -8 -7 -7 -7 -7 -7 -7 -6 -6 -6 -6 -6 -6 -6 -6 -5 -5 -5 -5 -5 -5 -4 -4 -4 -4 -4 -3 -3 -3 -2 -2 -2 -1 -1 ----------- Run | Yrd Mat Min Mat Min Mat Sto Fac Was Fac Low Low Dat Pro Fac Was Fac Ext Cet Arc Hub Fac Was Fac Upp Upp War Pro Fac Upp Upp Zhi Pro Res Tes Res Qua Sec Acc Com Matter Collected 14219 | 212 746 105 1046 169 1103 1342 641 182 161 30 38 10 78 58 . 686 405 210 133 344 526 . 704 13 77 . 70 1514 24 43 . 91 618 457 320 400 475 288 900 Remotely . | . . . . . . . . . . . . . . . . . . . . . . . . . . . . . . . . . . . . . . . . Salvage Created 21043 | . 818 176 2279 418 1698 1701 1425 266 428 136 75 30 111 201 . 844 333 252 351 298 700 . 484 . 187 . . 2419 . 43 . . 1622 461 612 479 500 259 1437 Parts 1098 | . 39 13 142 32 101 102 93 3 29 1 3 4 12 10 . 50 19 12 32 13 29 . 37 . 2 . . 105 . 6 . . 47 23 27 23 17 10 62 Haulers Intercepted 35 | . 1 . 6 . 4 4 6 . 2 . . . . . . . . . . 1 . . . . . . . . . . . . 6 1 3 . . 1 . Recyclers Shooed 13 | . 1 . 3 . 1 . . . 1 . . . . . . 2 . . . . . . . . . . . 1 . . . . 2 . 1 1 . . . Parts Field Recycled . | . . . . . . . . . . . . . . . . . . . . . . . . . . . . . . . . . . . . . . . . Retrieved Matter . | . . . . . . . . . . . . . . . . . . . . . . . . . . . . . . . . . . . . . . . . Parts Self-Destructed 20 | . . . . . . . . . . 4 4 . 8 . . . . . . . . . . . 1 . . . . 3 . . . . . . . . . Prevented 1 | . . . . . . . . . . . . . 1 . . . . . . . . . . . . . . . . . . . . . . . . . . Parts Restored . | . . . . . . . . . . . . . . . . . . . . . . . . . . . . . . . . . . . . . . . . Kills | -11 -10 -10 -9 -9 -8 -8 -7 -7 -7 -7 -7 -7 -6 -6 -6 -6 -6 -6 -6 -6 -5 -5 -5 -5 -5 -5 -4 -4 -4 -4 -4 -3 -3 -3 -2 -2 -2 -1 -1 ------- Run | Yrd Mat Min Mat Min Mat Sto Fac Was Fac Low Low Dat Pro Fac Was Fac Ext Cet Arc Hub Fac Was Fac Upp Upp War Pro Fac Upp Upp Zhi Pro Res Tes Res Qua Sec Acc Com Combat Hostiles Destroyed 289 | . 19 8 35 13 28 29 22 1 7 . 2 . 5 2 . 12 4 4 2 1 9 . 5 . . . . 35 . 8 . . 10 3 5 7 7 . 6 Melee 23 | . . . . . . . 8 . . . . . 1 . . 4 2 . . . 2 . 4 . . . . . . . . . 2 . . . . . . Guns 100 | . 8 1 29 8 25 26 1 . . . . . . . . 1 . . . . . . . . . . . 1 . . . . . . . . . . . Cannons 77 | . 11 7 4 . 2 3 . . . . . . . . . 3 2 4 2 . 2 . 1 . . . . 18 . . . . 2 3 . 2 7 . 4 AOE 87 | . . . 1 5 . . 13 1 7 . 2 . 4 2 . 4 . . . 1 5 . . . . . . 16 . 8 . . 6 . 5 5 . . 2 Classes Destroyed 21 | . 7 1 3 1 2 . 1 1 . . . . . . . . 1 . . . 1 . 1 . . . . . . . . . . 1 . . 1 . . Worker 35 | . . . 1 . 3 3 . . 2 . . . . 1 . 3 . . . . 1 . 2 . . . . 6 . . . . 7 1 1 2 . . 2 Builder 16 | . 1 . 1 . 1 . 5 . . . . . . . . 1 . . . . . . 2 . . . . 1 . . . . 2 1 . 1 . . . Tunneler 4 | . . 1 . 1 . . . . . . . . . . . . . . . . . . . . . . . 1 . . . . . . 1 . . . . Hauler 35 | . 1 . 6 . 4 4 6 . 2 . . . . . . . . . . 1 . . . . . . . . . . . . 6 1 3 . . 1 . Recycler 31 | . 1 . 5 . 2 1 3 . 1 . . . . 1 . . . . . . 2 . 1 . . . . 4 . . . . 5 . 2 1 . . 2 Mechanic 11 | . . . 2 . . . 1 . 2 . . . . . . . . . . . 2 . 1 . . . . 2 . . . . . . . 1 . . . Operator 23 | . 1 . 3 . 1 2 1 . . . . . . . . 3 1 . 6 1 1 . 1 . . . . 1 . . . . . 1 . . . . . Drone 3 | . . . . . . . . . . . . . . . . . . . . . 2 . . . . . . . . . . . 1 . . . . . . Watcher 61 | . 2 . 5 . 3 2 7 . 4 . . . . 1 . 6 2 . . 2 4 . 1 . . . . 9 . . . . 5 2 1 1 1 2 1 Swarmer 95 | . 3 6 8 4 7 . 12 . 7 . . . 4 1 . 5 . . . . 4 . 1 . . . . 11 . 8 . . 2 . 5 5 . . 2 Cutter 2 | . . . . . . . . . . . . . . . . . . . . . . . 2 . . . . . . . . . . . . . . . . Grunt 96 | . 16 2 17 8 10 15 4 . . . . . . . . . 2 . . 1 . . . . . . . 13 . . . . 5 3 . . . . . Brawler 5 | . . . . . 2 1 . . . . 1 . . . . 1 . . . . . . . . . . . . . . . . . . . . . . . Duelist 5 | . . . . 1 . 1 . . . . 1 . . 1 . . . . . . . . . . . . . 1 . . . . . . . . . . . Researcher 1 | . . . . . . . . . . . . . . . . . . . . . . . . . . . . . . . . . . 1 . . . . . Sentry 49 | . . . 10 . 8 12 1 . . . . . 1 . . 3 1 . 2 . 2 . 1 . . . . 3 . . . . 2 . . 2 . . 1 Hunter 8 | . . . . . 1 . 2 . . . . . . . . . . . . . 1 . . . . . . 4 . . . . . . . . . . . Programmer 10 | . . . . . . . 3 . . . . . . . . 2 . . . . . . . . . . . . . . . . . . . . 3 . 2 Behemoth 1 | . . . . . . . . . . . . . . . . . 1 . . . . . . . . . . . . . . . . . . . . . . Compactor 1 | . . . . . . . . 1 . . . . . . . . . . . . . . . . . . . . . . . . . . . . . . . Armor Guard 1 | . . . . . . . . . . . . . . . . . . . . . . . . . . . . 1 . . . . . . . . . . . Cetus Guard 5 | . . . . . . . . . . . . . . . . . . 4 . . . . . . . . . 1 . . . . . . . . . . . Striker 4 | . . . . . . . . . . . . . . . . . . . . . . . . . . . . . . . . . . . . . 4 . . Wasp 2 | . . . . . . . . 2 . . . . . . . . . . . . . . . . . . . . . . . . . . . . . . . Thug 1 | . . . . . . . . . . . . . . . . . . . . 1 . . . . . . . . . . . . . . . . . . . Best Kill Streak 13 | . 3 3 6 6 5 4 7 1 13 . 2 1 5 3 . 5 1 3 6 2 4 . 2 . . . . 10 . 4 . . 12 2 9 8 3 1 4 Combat Bots Only 7 | . 3 3 4 6 4 3 4 1 7 . 2 . 5 2 . 4 1 3 2 1 4 . 2 . . . . 7 . 4 . . 4 2 5 5 3 . 2 Max Kills in Single Turn 6 | . 2 1 2 5 2 1 3 2 5 . 2 1 3 3 . 2 1 1 1 2 2 . 1 . . . . 6 . 4 . . 5 1 3 3 3 1 2 Gunslinging 1 | . 1 . 1 . . . . . . . . . . . . . . . . . . . . . . . . . . . . . . . . . . . . Exploded 6 | . . . 1 5 . . 3 1 4 . 2 . 3 2 . 2 . . . 1 2 . . . . . . 6 . 4 . . 3 . 3 2 . . 2 Melee 1 | . . . . . . . 1 . . . . . 1 . . 1 1 . . . 1 . 1 . . . . . . . . . 1 . . . . . . Uniques/NPCs Destroyed 9 | . . . . . . . . . . . . 1 . . . 1 . . . . . . 1 . . . . 1 . . . . . . . . . 3 2 Data Miner (-7/Data Miner) 6S-H0T (-6/Factory) DW-4LL (-5/Factory) CL-0N3 (-4/Factory) Svarog (-1/Access) Zhirov (-1/Access) Perun (-1/Access) MAIN.C Shell (-1/Command) MAIN.C (-1/Command) Combat | -11 -10 -10 -9 -9 -8 -8 -7 -7 -7 -7 -7 -7 -6 -6 -6 -6 -6 -6 -6 -6 -5 -5 -5 -5 -5 -5 -4 -4 -4 -4 -4 -3 -3 -3 -2 -2 -2 -1 -1 -------- Run | Yrd Mat Min Mat Min Mat Sto Fac Was Fac Low Low Dat Pro Fac Was Fac Ext Cet Arc Hub Fac Was Fac Upp Upp War Pro Fac Upp Upp Zhi Pro Res Tes Res Qua Sec Acc Com Hostile Shots Fired 1288 | . 84 38 140 22 149 173 43 . 6 8 18 . 4 11 . 114 19 8 . 3 49 . 53 . 9 . 6 70 4 13 . 10 60 17 3 14 124 4 12 Missed 521 | . 25 12 38 5 31 50 17 . 1 2 10 . 3 7 . 68 10 7 . 2 20 . 28 . 9 . 4 37 2 9 . 4 39 9 2 6 55 2 7 Hits 767 | . 59 26 102 17 118 123 26 . 5 6 8 . 1 4 . 46 9 1 . 1 29 . 25 . . . 2 33 2 4 . 6 21 8 1 8 69 2 5 Melee 10 | . . . . . . 7 . . . . . . . . . . . . . . . . 1 . . . . . . . . . . . . . 2 . . Projectile 757 | . 59 26 102 17 118 116 26 . 5 6 8 . 1 4 . 46 9 1 . 1 29 . 24 . . . 2 33 2 4 . 6 21 8 1 8 67 2 5 AOE 7 | . . . . . . . . . . . . . . . . . . . . . . . . . . . . 2 . . . . . 1 . . . . 4 Critical Strikes 31 | . 3 . 2 1 7 5 . . . . . . . 1 . . 2 . . . 1 . 2 . . . . 4 . . . . 1 1 . . . . 1 Damage Taken 12901 | . 734 237 1131 214 1265 1757 400 12 81 100 46 . 51 46 . 630 123 58 . 194 813 . 574 . . . 33 952 39 64 . 107 342 220 89 201 2047 49 292 Core 1726 | . 107 30 192 43 102 136 62 . . . 11 . 18 . . 143 51 . . 29 186 . 79 . . . 16 229 . . . 21 49 23 . 48 151 . . Absorbed by Shields 931 | . . . 169 . 432 216 . . . . . . . . . . 49 . . . . . . . . . . . . . . . 65 . . . . . . Redirected to Shielding 9 | . . . . . . . . . . . . . . . . . . . . . . . . . . . . . . . . 9 . . . . . . . Regen/Repaired (Parts) 2992 | . . . . . . . . 41 . . 2 . . . . 268 53 . . . 384 . . . . 6 . 94 . . . . 736 64 3 . 762 . 579 Core Remaining (%) 75 | 100 . 45 . 41 . 56 . . . . . . 87 . . . . . . 73 . . . . . . 71 . . . . 78 . 94 . . 80 . 100 Volleys Fired 985 | . 81 17 149 24 139 134 21 8 4 . 2 . 3 1 . 45 24 15 5 23 20 . 40 . 6 . . 122 . 2 . . 16 22 5 8 10 2 37 Largest 2 | . 2 2 2 2 2 2 1 1 1 . 1 . 1 1 . 1 1 1 1 1 1 . 1 . 1 . . 1 . 1 . . 1 1 1 1 1 1 1 Hottest 180 | . 90 100 83 46 91 60 33 39 39 . 39 . 39 39 . 51 51 51 51 51 60 . 51 . 51 . . 60 . 60 . . 60 105 100 100 100 100 180 Shots Fired 1524 | . 162 33 296 47 278 267 21 8 4 . 2 . 3 1 . 45 24 15 5 23 20 . 40 . 6 . . 122 . 2 . . 16 22 5 8 10 2 37 Gun 947 | . 89 6 258 46 243 249 9 . . . . . . . . 29 . . . . . . . . . . . 18 . . . . . . . . . . . Cannon 507 | . 73 26 37 . 35 18 . . . . . . . . . 11 24 15 5 20 16 . 40 . 6 . . 96 . . . . 9 22 2 4 10 2 36 Launcher 69 | . . . 1 1 . . 12 8 4 . 2 . 3 1 . 5 . . . 3 4 . . . . . . 8 . 2 . . 7 . 3 4 . . 1 Special 1 | . . 1 . . . . . . . . . . . . . . . . . . . . . . . . . . . . . . . . . . . . . Kinetic 1293 | . 131 16 258 46 243 267 9 . . . . . . . . 40 24 15 5 20 16 . 40 . 6 . . 96 . . . . 9 18 2 4 10 2 16 Thermal 125 | . 30 17 37 . 35 . . . . . . . . . . . . . . . . . . . . . . . . . . . . 4 . . . . 2 Explosive 69 | . . . 1 1 . . 12 8 4 . 2 . 3 1 . 5 . . . 3 4 . . . . . . 8 . 2 . . 7 . 3 4 . . 1 Electromagnetic 1 | . 1 . . . . . . . . . . . . . . . . . . . . . . . . . . . . . . . . . . . . . . Slashing 18 | . . . . . . . . . . . . . . . . . . . . . . . . . . . . . . . . . . . . . . . 18 Entropic 18 | . . . . . . . . . . . . . . . . . . . . . . . . . . . . 18 . . . . . . . . . . . Robot Hit Streak 36 | . 12 6 13 13 11 14 3 6 . . 7 . . . . 13 29 4 4 10 4 . 6 . 2 . . 9 . 9 . . 16 10 3 8 6 . 36 Robot Miss Streak 14 | . 6 3 5 2 7 6 1 . . . . . . . . 2 . 1 2 3 1 . 2 . 1 . . 3 . . . . 1 2 2 3 14 . 4 Penetration Max 2 | . . . . . . . . . . . . . . . . 1 . . . 1 1 . . . . . . 1 . . . . . . . 1 2 . 1 Secondary Targets 9 | . 1 . 3 1 3 1 . . . . . . . . . . . . . . . . . . . . . . . . . . . . . . . . . Max Gunslinging Chain 1 | . 1 . 1 1 1 1 . . . . . . . . . . . . . . . . . . . . . . . . . . . . . . . . . Shots Hit Robots 1302 | . 95 20 177 33 174 192 64 3 8 3 1 2 2 2 . 77 55 10 19 14 31 . 52 . 7 2 . 98 . 2 4 . 45 23 15 11 11 10 40 Core Hits 835 | . 36 10 85 22 73 88 61 8 23 2 5 1 5 7 . 40 13 4 8 11 24 . 21 . 2 . . 73 . 7 . . 41 10 18 20 11 5 101 Critical Kills 58 | . . . 2 . 1 . 1 . . . . . . . . 3 1 4 2 1 2 . 1 . . . . 21 . . . . 2 3 . 3 7 . 4 Critical Parts Destroyed 96 | . 1 . . 1 1 1 1 . . . . . . . . 5 8 4 . 4 3 . 5 . 3 . . 23 . . . . 2 4 3 1 4 . 22 Critical Strikes 246 | . 3 . 2 1 2 1 8 . 1 . . . . . . 15 16 8 3 5 9 . 18 . 3 . . 49 . . . . 6 7 4 8 17 3 57 Meltdown 2 | . . . 1 . 1 . . . . . . . . . . . . . . . . . . . . . . . . . . . . . . . . . . Destroy 213 | . 1 . 1 1 1 1 2 . . . . . . . . 11 15 8 2 5 8 . 15 . 3 . . 46 . . . . 5 7 3 7 16 . 55 Blast 2 | . 2 . . . . . . . . . . . . . . . . . . . . . . . . . . . . . . . . . . . . . . Sever 1 | . . . . . . . . . . . . . . . . . . . . . . . . . . . . . . . . . 1 . . . . . . Impale 28 | . . . . . . . 6 . 1 . . . . . . 4 1 . 1 . 1 . 3 . . . . 3 . . . . . . 1 1 1 3 2 Melee Attacks 792 | . . . . . . 9 113 . 24 7 . 2 9 3 . 112 46 . 17 11 98 . 58 1 9 2 3 43 . . 4 . 89 36 21 11 33 19 12 Impact . | . . . . . . . . . . . . . . . . . . . . . . . . . . . . . . . . . . . . . . . . Slashing 68 | . . . . . . 9 5 . . . . . . . . . . . . . . . . . . . . . . . . . 48 4 2 . . . . Piercing 675 | . . . . . . . 104 . 24 7 . 1 9 3 . 108 21 . 15 11 94 . 57 1 9 . 3 42 . . . . 41 31 19 11 33 19 12 Sneak Attacks 146 | . . . . . . . 22 . 4 . . 2 . 2 . 13 26 . 9 1 10 . 9 . . 2 . 13 . . 4 . 12 4 4 2 1 3 3 Combat Hostiles 6 | . . . . . . . 3 . . . . . . . . 1 . . . . . . . . . . . 1 . . . . 1 . . . . . . Follow-up Attacks 10 | . . . . . . . . . . . . . . . . . . . . . 2 . 1 . 1 . . . . . . . 5 . . . 1 . . Damage Inflicted 49693 | . 1494 448 2891 782 2987 3409 3866 1020 1319 164 224 83 375 540 . 2744 638 197 930 739 1779 . 1638 . 264 . . 5818 . 859 . . 5314 908 2247 1513 267 704 3532 Guns 10202 | . 735 31 2450 487 2467 3023 46 . . . . . . . . 140 . . . . . . . . . . . 823 . . . . . . . . . . . Cannons 7964 | . 756 382 332 . 430 349 . . . . . . . . . 169 383 197 47 200 238 . 476 . 59 . . 1083 . . . . 138 259 42 82 97 . 2245 Explosions 14207 | . . . 79 271 . . 1410 1020 830 . 224 . 303 404 . 477 . . . 378 650 . . . . . . 2258 . 859 . . 2538 . 1194 963 . . 349 Melee 17101 | . . . . . . . 2410 . 489 164 . 83 72 136 . 1958 255 . 883 161 891 . 1162 . 205 . . 1654 . . . . 2638 649 1011 468 170 704 938 Ramming 219 | . 3 35 30 24 90 37 . . . . . . . . . . . . . . . . . . . . . . . . . . . . . . . . . Kinetic 14182 | . 1190 177 2450 487 2467 3372 46 . . . . . . . . 309 383 197 47 200 238 . 476 . 59 . . 1083 . . . . 138 259 42 82 97 . 383 Thermal 1714 | . 288 236 332 54 430 . 324 . . . . . . . . . . . . . . . . . . . . 50 . . . . . . . . . . . Explosive 13401 | . . . 79 217 . . 1086 1020 830 . 224 . 303 404 . 477 . . . . 650 . . . . . . 2208 . 859 . . 2538 . 1194 963 . . 349 Electromagnetic 391 | . 13 . . . . . . . . . . . . . . . . . . 378 . . . . . . . . . . . . . . . . . . . Impact . | . . . . . . . . . . . . . . . . . . . . . . . . . . . . . . . . . . . . . . . . Slashing 3520 | . . . . . . . 142 . . . . . . . . . . . . . . . . . . . . . . . . . 1516 . . . . . 1862 Piercing 15443 | . . . . . . . 2268 . 489 164 . 83 72 136 . 1958 255 . 883 161 891 . 1162 . 205 . . 1654 . . . . 1122 649 1011 468 170 704 938 Entropic 823 | . . . . . . . . . . . . . . . . . . . . . . . . . . . . 823 . . . . . . . . . . . Highest Corruption 6 | . . . . . . . 1 . . . . . . . . 3 2 . . 3 . . 6 6 6 6 . . . . . . . 1 . . 4 . . Average Corruption 2 | . . . . . . . 1 . . . . . . . . 1 1 . . 2 . . 5 6 6 6 . . . . . . . 1 . . 2 . . Corruption Purged 6 | . . . . . . . 1 . . . . . . . . 3 2 . . . . . . . . . . . . . . . . . . . . . . Corruption Blocked . | . . . . . . . . . . . . . . . . . . . . . . . . . . . . . . . . . . . . . . . . Effects 36 | . . . . . . . 1 . . . . . . . . 7 . . . . . . 9 3 8 . . . . . . . . 5 . . 3 . . Message Errors 10 | . . . . . . . . . . . . . . . . 2 . . . . . . 3 . 3 . . . . . . . . 2 . . . . . Matter Fused 11 | . . . . . . . 1 . . . . . . . . 2 . . . . . . 2 1 1 . . . . . . . . 2 . . 2 . . Energy Discharges 5 | . . . . . . . . . . . . . . . . 2 . . . . . . 1 . 2 . . . . . . . . . . . . . . Parts Fused 1 | . . . . . . . . . . . . . . . . . . . . . . . 1 . . . . . . . . . . . . . . . . Data Loss (minor) 8 | . . . . . . . . . . . . . . . . 1 . . . . . . 1 2 2 . . . . . . . . 1 . . 1 . . Data Loss (major) 1 | . . . . . . . . . . . . . . . . . . . . . . . 1 . . . . . . . . . . . . . . . . Overload Shots 2 | . . . . . . . . . . . . . . . . . . . . . . . . . . . . . . . . . . . . . . . 2 Overflow Damage 3713 | . 6 13 8 . . . 367 6 104 . . . 26 48 . 474 . . 259 57 180 . 125 . 57 . . 314 . 112 . . 668 217 62 145 223 67 175 Projectiles 27 | . 6 13 8 . . . . . . . . . . . . . . . . . . . . . . . . . . . . . . . . . . . . Explosions 742 | . . . . . . . 44 6 8 . . . 26 19 . 20 . . . 40 84 . . . . . . 66 . 112 . . 246 . 30 29 . . 12 Melee 2944 | . . . . . . . 323 . 96 . . . . 29 . 454 . . 259 17 96 . 125 . 57 . . 248 . . . . 422 217 32 116 223 67 163 Knockbacks 42 | . 11 4 1 . . 2 . . . . . . . . . . 1 1 . . . . 1 . . . . . . . . . . . . . 8 . 13 Impact 2 | . . 1 1 . . . . . . . . . . . . . . . . . . . . . . . . . . . . . . . . . . . . Kinetic 36 | . 9 3 . . . 2 . . . . . . . . . . 1 1 . . . . 1 . . . . . . . . . . . . . 6 . 13 Secondary 4 | . 2 . . . . . . . . . . . . . . . . . . . . . . . . . . . . . . . . . . . 2 . . Self-Inflicted Damage 217 | . . . . . . . . 13 . . . . 28 . . . . . . 176 . . . . . . . . . . . . . . . . . . . Shots 4 | . . . . . . . . 1 . . . . 1 . . . . . . 2 . . . . . . . . . . . . . . . . . . . Rammed 31 | . 2 7 3 5 11 3 . . . . . . . . . . . . . . . . . . . . . . . . . . . . . . . . . Targets Rammed 36 | . 2 8 3 6 12 5 . . . . . . . . . . . . . . . . . . . . . . . . . . . . . . . . . Kicked . | . . . . . . . . . . . . . . . . . . . . . . . . . . . . . . . . . . . . . . . . Crushed 5 | . . 1 . 1 1 2 . . . . . . . . . . . . . . . . . . . . . . . . . . . . . . . . . Highest Temperature 468 | . 56 27 75 37 370 182 4 163 17 . . 124 17 1 296 63 190 66 13 112 206 361 375 69 69 . 158 313 . 14 . 41 286 468 25 . 113 15 324 Average Temperature 52 | . 19 18 12 11 81 38 3 72 9 . . 93 12 1 166 4 64 29 13 38 25 240 73 35 35 . 87 42 . 9 . 34 114 144 3 . 51 8 124 Received Heat Transfer 3176 | . 432 39 414 135 664 703 45 . 9 . . . . 6 . 42 6 . . 9 18 . 99 . . . . 295 . . . 24 83 63 . 27 63 . . Effects 2 | . . . . . . . . . . . . . . . . . . . . . . . 1 . . . . . . . . . . . . . . . 1 Shutdowns 1 | . . . . . . . . . . . . . . . . . . . . . . . 1 . . . . . . . . . . . . . . . . Short Circuit 1 | . . . . . . . . . . . . . . . . . . . . . . . . . . . . . . . . . . . . . . . 1 Siege Activations . | . . . . . . . . . . . . . . . . . . . . . . . . . . . . . . . . . . . . . . . . Martial Activations . | . . . . . . . . . . . . . . . . . . . . . . . . . . . . . . . . . . . . . . . . Shielding Activations . | . . . . . . . . . . . . . . . . . . . . . . . . . . . . . . . . . . . . . . . . Robots Disrupted . | . . . . . . . . . . . . . . . . . . . . . . . . . . . . . . . . . . . . . . . . Combat Hostiles . | . . . . . . . . . . . . . . . . . . . . . . . . . . . . . . . . . . . . . . . . Robots Corrupted . | . . . . . . . . . . . . . . . . . . . . . . . . . . . . . . . . . . . . . . . . Combat Hostiles . | . . . . . . . . . . . . . . . . . . . . . . . . . . . . . . . . . . . . . . . . Parts Fried . | . . . . . . . . . . . . . . . . . . . . . . . . . . . . . . . . . . . . . . . . Impact Corruptions . | . . . . . . . . . . . . . . . . . . . . . . . . . . . . . . . . . . . . . . . . Robots Melted 2 | . . . 1 . 1 . . . . . . . . . . . . . . . . . . . . . . . . . . . . . . . . . . Combat Hostiles 2 | . . . 1 . 1 . . . . . . . . . . . . . . . . . . . . . . . . . . . . . . . . . . Parts Melted 8 | . . 1 2 . 2 . 1 . . . . . . . . . . . . . 2 . . . . . . . . . . . . . . . . . . Heat Transferred 2890 | . 629 481 703 50 777 . 200 . . . . . . . . . . . . . . . . . . . . 50 . . . . . . . . . . . Parts Sabotaged . | . . . . . . . . . . . . . . . . . . . . . . . . . . . . . . . . . . . . . . . . Parts Stolen . | . . . . . . . . . . . . . . . . . . . . . . . . . . . . . . . . . . . . . . . . Parts Stripped . | . . . . . . . . . . . . . . . . . . . . . . . . . . . . . . . . . . . . . . . . Power Chain Reactions . | . . . . . . . . . . . . . . . . . . . . . . . . . . . . . . . . . . . . . . . . Alert | -11 -10 -10 -9 -9 -8 -8 -7 -7 -7 -7 -7 -7 -6 -6 -6 -6 -6 -6 -6 -6 -5 -5 -5 -5 -5 -5 -4 -4 -4 -4 -4 -3 -3 -3 -2 -2 -2 -1 -1 ------- Run | Yrd Mat Min Mat Min Mat Sto Fac Was Fac Low Low Dat Pro Fac Was Fac Ext Cet Arc Hub Fac Was Fac Upp Upp War Pro Fac Upp Upp Zhi Pro Res Tes Res Qua Sec Acc Com Maximum Alert Level 5 | . . . 2 1 1 2 2 1 3 . . . . . . 1 . . 1 3 2 . . . . . . 1 . . . . 2 1 1 2 5 5 5 Low Security (%) 60 | 100 100 100 67 45 65 14 35 . 12 . . . . 100 100 99 100 100 51 37 24 100 100 . . . . 77 . . . . 84 98 25 53 . . . Level 1 20 | . . . 13 54 34 46 27 100 46 . . . . . . . . . 48 40 24 . . . . . . 22 . . . . 1 1 74 2 24 . . Level 2 13 | . . . 18 . . 39 37 . 6 . . . . . . . . . . 12 50 . . . . . . . . . . . 13 . . 44 67 . . Level 3 1 | . . . . . . . . . 34 . . . . . . . . . . 9 . . . . . . . . . . . . . . . . . . . Level 4 . | . . . . . . . . . . . . . . . . . . . . . . . . . . . . . . . . . . . . . . 9 15 Level 5 3 | . . . . . . . . . . . . . . . . . . . . . . . . . . . . . . . . . . . . . . . 84 High Security . | . . . . . . . . . . . . . . . . . . . . . . . . . . . . . . . . . . . . . . . . Max Security . | . . . . . . . . . . . . . . . . . . . . . . . . . . . . . . . . . . . . . 8 90 . Peak Influence 1970 | . 185 150 481 319 392 487 673 285 860 . . . . 141 42 208 175 197 273 823 557 183 186 . . . . 383 . . . . 505 202 348 471 1828 1970 1652 Initial 1260 | . . 30 . 175 39 156 183 233 164 . . . . 53 27 29 100 54 62 34 398 183 128 . . . . . . . . . . 91 97 149 261 1105 1260 Average 224 | . 87 47 202 208 158 335 340 257 471 . . . . 93 33 77 56 146 193 308 330 183 57 . . . . 132 . . . . 173 160 267 296 579 1710 1489 Influence Increases 19741 | . 652 226 1078 359 942 1047 1515 72 1100 52 87 20 116 116 15 892 1003 343 251 1639 1430 . 566 . 35 . 45 1461 30 285 . . 1077 387 349 437 855 388 871 Destroy 0b10 Robot/C 7280 | . 380 160 700 260 560 580 480 . 460 20 60 20 100 40 . 220 500 160 80 420 200 . 80 . . . . 680 . 160 . . 180 80 100 140 140 80 240 Destroy 0b10 Robot/NC 1170 | . 30 5 115 5 70 60 115 . 75 5 . . . 15 . 65 20 10 30 45 55 . 40 . 5 . . 120 . . . . 130 25 40 30 15 15 30 Destroy Leader 1578 | . 106 30 202 50 164 172 122 . 104 10 . . 10 2 . 72 46 . . 102 58 . 12 . . . . 128 . 20 . . 52 6 18 12 10 36 34 Allied During Kill 1395 | . . . . . . . . . 269 17 27 . 6 2 . . 300 170 110 373 8 . . . . . . 10 . . . . . . . . 2 29 72 Trap Triggered on 0b10 210 | . . . . . . 10 70 . . . . . . . . 30 . . . . 20 . 30 . . . . 30 . . . . 10 . . . 10 . . Successful Hack 710 | . 29 . 14 . 40 33 64 . 36 . . . . . . 66 16 . . 32 131 . 66 . . . . 12 . . . . 34 23 29 42 24 . 19 Select Force Hacks 210 | . 60 . . . . . . . . . . . . . . . . . . 100 . . . . . . . . . . . . . 50 . . . . . Disable Machine 1290 | . 30 30 15 30 60 105 45 . 45 . . . . 30 . . . . 30 210 165 . 15 . . . . 90 . . . . 45 75 15 45 105 15 90 Anti-Garrison Action 250 | . . . . . . . 200 . . . . . . . . . . . . . . . . . . . . . . . . . . . . . . . 50 Destroy Structure 2078 | . 2 1 17 14 3 12 119 42 81 . . . . 12 . 64 16 3 1 237 208 . 38 . . . . 226 . . . . 176 38 87 108 129 138 306 Partial Spotted 975 | . . . . . . 15 150 30 . . . . . . 15 195 90 . . . 105 . 60 . . . . 15 . . . . 90 30 45 30 45 30 30 Lose Combat Pursuer 2595 | . 15 . 15 . 45 60 150 . 30 . . . . 15 . 180 15 . . 120 480 . 225 . 30 . 45 150 30 105 . . 360 60 15 30 375 45 . Influence Decreases 19260 | . 575 303 628 709 672 1013 1251 505 523 451 190 330 30 123 52 729 1110 284 309 925 1718 342 716 33 35 . 45 1404 72 64 236 . 914 376 257 237 531 738 830 Entered New Map 5428 | . . 47 . 275 61 214 221 435 71 301 80 310 . 33 52 13 105 44 95 65 415 342 55 13 . . . . 22 4 236 . . 72 77 117 205 738 710 Time Decay 8724 | . 545 256 608 434 611 589 571 70 302 150 110 . 30 70 . 555 285 140 214 160 561 . 369 20 35 . 45 540 40 60 . . 444 294 170 120 206 . 120 Search Patrol Dispatched 100 | . . . . . . . . . . . . . . . . . . . . . . . . . . . . . . . . . . . . . 100 . . Lost Part 225 | . 30 . 20 . . 60 30 . . . . . . . . 10 . . . 10 . . . . . . . 25 10 . . . 10 10 . . 10 . . Lost Ally 984 | . . . . . . . 70 . 150 . . 20 . 20 . 10 202 100 . 240 62 . 20 . . . . 60 . . . . 10 . 10 . 10 . . Purge Threat 3799 | . . . . . . 150 359 . . . . . . . . 141 518 . . 450 680 . 272 . . . . 779 . . . . 450 . . . . . . Squads Dispatched 120 | . 5 . 3 . 2 2 14 . 5 . . . . . . 7 . . . 14 10 . 9 . . . . 7 . . . . 9 7 . 2 9 15 . Investigation 41 | . 4 . . . . . 8 . 2 . . . . . . 3 . . . 6 6 . 3 . . . . 2 . . . . 6 1 . . . . . Extermination 27 | . . . . . . . 4 . 1 . . . . . . 3 . . . 1 4 . 3 . . . . 4 . . . . 1 2 . 1 3 . . Reinforcement 30 | . 1 . 3 . 1 2 2 . 1 . . . . . . 1 . . . 6 . . 3 . . . . 1 . . . . 2 3 . 1 . 3 . Assault 19 | . . . . . . . . . . . . . . . . . . . . . . . . . . . . . . . . . . 1 . . 6 12 . Garrison 3 | . . . . . 1 . . . 1 . . . . . . . . . . 1 . . . . . . . . . . . . . . . . . . . Intercept . | . . . . . . . . . . . . . . . . . . . . . . . . . . . . . . . . . . . . . . . . Searches Triggered 1 | . . . . . . . . . . . . . . . . . . . . . . . . . . . . . . . . . . . . . 1 . . Unchained Authorized 4 | . . . . . . . . . . . . . . . . 1 . . . . . . 1 . . . . 2 . . . . . . . . . . . Construction Impeded 1 | . . . . . . . . . . . . . . . . . . . . 1 . . . . . . . . . . . . . . . . . . . Haulers Reinforced 8 | . . . . . . . 2 . 1 . . . . . . . . . . 2 . . . . . . . . . . . . 2 . . . . 1 . Active Scanning Responses . | . . . . . . . . . . . . . . . . . . . . . . . . . . . . . . . . . . . . . . . . Cargo Convoy Interrupts 2 | . . . . . . . . . . . . . . . . . . . . . 1 . 1 . . . . . . . . . . . . . . . . Stealth | -11 -10 -10 -9 -9 -8 -8 -7 -7 -7 -7 -7 -7 -6 -6 -6 -6 -6 -6 -6 -6 -5 -5 -5 -5 -5 -5 -4 -4 -4 -4 -4 -3 -3 -3 -2 -2 -2 -1 -1 --------- Run | Yrd Mat Min Mat Min Mat Sto Fac Was Fac Low Low Dat Pro Fac Was Fac Ext Cet Arc Hub Fac Was Fac Upp Upp War Pro Fac Upp Upp Zhi Pro Res Tes Res Qua Sec Acc Com Distress Signals 69 | . . . 2 . 5 4 3 . 2 . . . . . . 3 . 2 . 2 3 . 3 . . . . . . . . . 6 7 4 1 1 . 21 Communications Jammed . | . . . . . . . . . . . . . . . . . . . . . . . . . . . . . . . . . . . . . . . . Distress Signals . | . . . . . . . . . . . . . . . . . . . . . . . . . . . . . . . . . . . . . . . . Times Spotted 765 | . 28 7 55 11 43 40 46 7 22 1 3 4 5 4 . 36 22 9 10 18 50 4 45 . 2 . 3 69 2 11 . 16 55 14 10 21 57 12 23 Peak Tracking Total 23 | . 3 3 5 4 5 5 8 6 9 1 3 4 4 3 . 5 4 5 1 16 8 5 16 . 1 . 3 13 2 7 . 10 16 3 6 5 23 5 10 Tactical Retreats 91 | . 1 . 1 . 2 4 7 . 1 . . . . 1 . 9 1 . . 3 15 . 7 . 2 . 3 6 1 3 . 1 8 3 1 1 9 1 . Traps | -11 -10 -10 -9 -9 -8 -8 -7 -7 -7 -7 -7 -7 -6 -6 -6 -6 -6 -6 -6 -6 -5 -5 -5 -5 -5 -5 -4 -4 -4 -4 -4 -3 -3 -3 -2 -2 -2 -1 -1 ------- Run | Yrd Mat Min Mat Min Mat Sto Fac Was Fac Low Low Dat Pro Fac Was Fac Ext Cet Arc Hub Fac Was Fac Upp Upp War Pro Fac Upp Upp Zhi Pro Res Tes Res Qua Sec Acc Com Traps Triggered 15 | . 3 . . . . . 1 . . . . . . 2 . 2 . . . . 3 . 4 . . . . . . . . . . . . . . . . Indirectly . | . . . . . . . . . . . . . . . . . . . . . . . . . . . . . . . . . . . . . . . . Trap Hack Attempts 204 | . . . 20 . . . 28 . 21 . . . . . . 82 8 . . . 1 . . . . . . 40 . . . . . 4 . . . . . Triggered 2 | . . . . . . . 1 . . . . . . . . 1 . . . . . . . . . . . . . . . . . . . . . . . Disarmed 35 | . . . . . . . 1 . 1 . . . . . . 1 4 . . . 1 . . . . . . 21 . . . . . 6 . . . . . Reprogrammed 113 | . . . 2 . . 6 16 . 3 . . . . . . 23 4 . . 1 1 . 12 . . . . 22 . . . . 10 3 . . 10 . . Reused 29 | . . . . . . 1 7 . . . . . 1 . . 7 . . . . 2 . 3 . . . . 6 . . . . 1 . . . 1 . . Traps Extracted 30 | . . . . . . 4 . . 3 . . . . . . 9 . . . . 1 . 6 . . . . 6 . 1 . . . . . . . . . Installed 25 | . . . . . . . . . . . . . 1 . . 8 . . . . 7 . 4 . . . . 4 . . . . . 1 . . . . . Triggered 22 | . . . . . . 1 7 . . . . . 1 . . 3 . . . . 2 . 3 . . . . 3 . . . . 1 . . . 1 . . Most Traps Carried 8 | . . . . . . 4 4 4 7 7 7 7 7 6 6 8 7 7 7 7 7 1 6 3 3 3 3 4 4 4 1 1 1 1 . . . . . Machines | -11 -10 -10 -9 -9 -8 -8 -7 -7 -7 -7 -7 -7 -6 -6 -6 -6 -6 -6 -6 -6 -5 -5 -5 -5 -5 -5 -4 -4 -4 -4 -4 -3 -3 -3 -2 -2 -2 -1 -1 ---------- Run | Yrd Mat Min Mat Min Mat Sto Fac Was Fac Low Low Dat Pro Fac Was Fac Ext Cet Arc Hub Fac Was Fac Upp Upp War Pro Fac Upp Upp Zhi Pro Res Tes Res Qua Sec Acc Com Machines Disabled 91 | . 2 2 1 2 4 7 3 . 3 . . . . 2 . . . . 2 14 11 . 1 . . . 1 6 . . . . 3 6 1 3 8 1 8 Max in Single Turn 11 | . 1 1 1 2 1 1 2 . 1 . . . . 2 . . . . . 11 6 . 1 . . . 1 3 . . . . 1 1 1 1 1 1 2 Garrison Access 30 | . . . . . 1 . 4 . 2 . . . . 1 . 4 . . . 2 4 . 1 . . . . 4 . . . . 4 1 2 . . . . Phase Generator 1 | . . . . . . . . . . . . . . . . . . . . . . . . . . . . . . . . . . . . . . . 1 Network Hub 4 | . . . . . . . . . . . . . . . . . . . . 4 . . . . . . . . . . . . . . . . . . . Energy Cycler 1 | . . . . . . . . . . . . . . . . . . . . . . . . . . . . . . . . . . . . . . 1 . Machines Repaired . | . . . . . . . . . . . . . . . . . . . . . . . . . . . . . . . . . . . . . . . . Machines Dismantled . | . . . . . . . . . . . . . . . . . . . . . . . . . . . . . . . . . . . . . . . . Machines Sabotaged 2 | . . . . . . . . . . . . . . . . . . . . 2 . . . . . . . . . . . . . . . . . . . Overloaded Fab Kills 1 | . . . . . . . . . . . . . . . . . . . . . . . . . . . . . . . . . . 1 . . . . . Hacking | -11 -10 -10 -9 -9 -8 -8 -7 -7 -7 -7 -7 -7 -6 -6 -6 -6 -6 -6 -6 -6 -5 -5 -5 -5 -5 -5 -4 -4 -4 -4 -4 -3 -3 -3 -2 -2 -2 -1 -1 --------- Run | Yrd Mat Min Mat Min Mat Sto Fac Was Fac Low Low Dat Pro Fac Was Fac Ext Cet Arc Hub Fac Was Fac Upp Upp War Pro Fac Upp Upp Zhi Pro Res Tes Res Qua Sec Acc Com Machines Accessed 269 | . 8 . 12 . 12 6 32 . 10 1 . 3 . 4 . 21 17 1 . 12 31 . 14 1 . 7 . 19 . . 4 . 17 12 8 6 7 . 4 Terminals 167 | . 6 . 9 . 10 6 20 . 5 . . . . 3 . 11 16 1 . 10 15 . 11 1 . . . 10 . . . . 6 7 5 5 7 . 3 Fabricators 24 | . . . . . . . 6 . 2 . . . . . . 3 . . . . 5 . 2 . . . . 1 . . . . 4 1 . . . . . Repair Stations 10 | . . . . . . . . . . . . . . . . 1 1 . . . 3 . . . . . . 1 . . . . 2 1 . . . . 1 Recycling Units 9 | . 2 . 1 . . . . . . . . . . . . 1 . . . . 3 . . . . . . 2 . . . . . . . . . . . Scanalyzers 14 | . . . 2 . 1 . 2 . 1 . . . . . . 1 . . . . 1 . . . . . . 1 . . . . 1 2 1 1 . . . Garrison Access 30 | . . . . . 1 . 4 . 2 . . . . 1 . 4 . . . 2 4 . 1 . . . . 4 . . . . 4 1 2 . . . . Total Hacks 1177 | . 31 . 42 . 37 19 91 . 24 1 . 28 . 7 . 100 62 2 . 71 182 . 94 8 . 11 . 100 . . 14 . 96 53 34 16 37 . 17 Successful 890 | . 17 . 30 . 21 11 64 . 16 1 . 28 . 4 . 71 46 1 . 44 143 . 73 8 . 11 . 83 . . 14 . 83 44 30 9 28 . 10 Failed 279 | . 14 . 11 . 15 8 26 . 7 . . . . 3 . 29 16 1 . 27 39 . 20 . . . . 16 . . . . 13 8 4 6 9 . 7 Catastrophic 26 | . 1 . 1 . . 4 6 . . . . . . 1 . 1 . . . 4 2 . . . . . . 2 . . . . . . . 2 2 . . Database Lockouts 8 | . . . 1 . 1 . 1 . 1 . . . . . . . . . . . . . 1 . . . . 1 . . . . . 1 . 1 . . . Manual 724 | . 24 . 26 . 26 14 52 . 12 . . . . 4 . 59 36 1 . 56 105 . 77 . . 1 . 64 . . . . 56 35 21 14 31 . 10 Terminals 849 | . 26 . 33 . 32 19 60 . 12 . . . . 6 . 62 58 2 . 68 112 . 82 8 . . . 74 . . . . 59 43 31 14 37 . 11 Fabricators 105 | . . . . . . . 19 . 5 . . . . . . 12 . . . . 25 . 11 . . . . 9 . . . . 23 1 . . . . . Repair Stations 45 | . . . . . . . . . . . . . . . . 5 4 . . . 14 . . . . . . 6 . . . . 8 2 . . . . 6 Recycling Units 36 | . 5 . 1 . . . . . . . . . . . . 9 . . . . 15 . . . . . . 6 . . . . . . . . . . . Scanalyzers 45 | . . . 8 . 3 . 6 . 4 . . . . . . 5 . . . . 8 . . . . . . 1 . . . . 1 6 1 2 . . . Garrison Access 43 | . . . . . 2 . 6 . 3 . . . . 1 . 7 . . . 3 8 . 1 . . . . 4 . . . . 5 1 2 . . . . Terminal Hacks 419 | . 5 . 6 . 3 4 22 . . 1 . 28 . 1 . 27 27 1 . 22 52 . 44 8 . 11 . 46 . . 14 . 32 27 14 7 15 . 2 Record 26 | . . . . . . . . . . . . 6 . . . . . . . . . . 1 8 . 5 . . . . 5 . . . . 1 . . . Part Schematic 27 | . . . . . . . 1 . . . . 13 . . . 1 1 . . 1 3 . . . . . . 1 . . 4 . . 1 1 . . . . Robot Schematic 6 | . . . . . . . . . . . . 6 . . . . . . . . . . . . . . . . . . . . . . . . . . . Robot Analysis 12 | . 2 . . . . . . . . . . . . . . . . . . . 3 . 5 . . . . . . . 1 . . . . . 1 . . Prototype ID Bank 33 | . 1 . 2 . 1 . 1 . . . . 3 . . . 2 1 . . 2 3 . 1 . . 5 . 1 . . 4 . 2 1 2 . 1 . . Open Door 15 | . . . . . . 1 . . . 1 . . . 1 . . 8 1 . . . . . . . 1 . . . . . . . . . . 1 . 1 Level Access Points 5 | . . . . . . . . . . . . . . . . . . . . 1 . . . . . . . 1 . . . . 1 1 . 1 . . . Branch Access Points 5 | . . . . . . . . . . . . . . . . . . . . . 1 . 1 . . . . 1 . . . . 1 . 1 . . . . Emergency Access Points 1 | . . . . . . . . . . . . . . . . . . . . 1 . . . . . . . . . . . . . . . . . . . Machine Index 5 | . . . . . . . . . . . . . . . . . 1 . . . . . 1 . . . . 1 . . . . . . 1 . 1 . . Terminal Index 7 | . . . . . 1 . 1 . . . . . . . . 1 1 . . 1 1 . . . . . . . . . . . 1 . . . . . . Fabricator Index 1 | . . . . . . . . . . . . . . . . . . . . . 1 . . . . . . . . . . . . . . . . . . Repair Station Index 2 | . . . . . . . . . . . . . . . . 1 . . . . 1 . . . . . . . . . . . . . . . . . . Scanalyzer Index 2 | . . . . . . . . . . . . . . . . . . . . . 2 . . . . . . . . . . . . . . . . . . Garrison Index 4 | . . . . . . . 1 . . . . . . . . 1 . . . . 1 . . . . . . . . . . . 1 . . . . . . Alert Level 31 | . . . . . . 1 3 . . . . . . . . 3 2 . . 2 4 . 3 . . . . 4 . . . . 4 2 3 . . . . Unreport Threat 30 | . . . . . . 1 3 . . . . . . . . 1 5 . . 3 5 . 3 . . . . 6 . . . . 3 . . . . . . Locate Traps 27 | . . . 3 . . . 1 . . . . . . . . 3 1 . . 1 3 . 3 . . . . 4 . . . . 2 3 . . 3 . . Disarm Traps 5 | . . . . . . . . . . . . . . . . . 1 . . . . . . . . . . 3 . . . . . 1 . . . . . Reprogram Traps 19 | . . . . . . 1 3 . . . . . . . . 1 2 . . 1 1 . 2 . . . . 3 . . . . 2 1 . . 2 . . Dispatch Records 38 | . 1 . 1 . 1 . 1 . . . . . . . . 4 3 . . 1 5 . 5 . . . . 6 . . . . 3 4 1 1 1 . . Maintenance Status 1 | . . . . . . . . . . . . . . . . . . . . . . . 1 . . . . . . . . . . . . . . . . Security Status 2 | . . . . . . . . . . . . . . . . 1 . . . 1 . . . . . . . . . . . . . . . . . . . Surveillance Status 1 | . . . . . . . . . . . . . . . . . . . . . . . . . . . . . . . . . . 1 . . . . . Patrol Status 7 | . . . . . . . 1 . . . . . . . . . . . . . 1 . 2 . . . . 1 . . . . 1 . 1 . . . . Transport Status 2 | . . . . . . . . . . . . . . . . . . . . . 1 . 1 . . . . . . . . . . . . . . . . Extermination Status 1 | . . . . . . . . . . . . . . . . 1 . . . . . . . . . . . . . . . . . . . . . . . Recall Investigation 14 | . . . . . . . 2 . . . . . . . . 2 . . . 1 3 . 2 . . . . 1 . . . . 2 1 . . . . . Recall Extermination 17 | . . . . . . . 1 . . . . . . . . 2 . . . . 3 . 2 . . . . 4 . . . . 1 2 . 1 1 . . Recall Reinforcements 10 | . . . . . . . . . . . . . . . . 1 . . . 2 . . 2 . . . . 1 . . . . 1 2 . 1 . . . Recall Assault 5 | . . . . . . . . . . . . . . . . . . . . . 3 . 1 . . . . . . . . . . 1 . . . . . Hauler Manifests 6 | . . . . . . . 1 . . . . . . . . . . . . . 2 . . . . . . 1 . . . . 1 . 1 . . . . Registered Components 2 | . . . . . . . . . . . . . . . . . . . . . 1 . . . . . . . . . . . . . 1 . . . . Registered Prototypes 5 | . . . . . . . 1 . . . . . . . . 1 . . . . 1 . 1 . . . . . . . . . 1 . . . . . . Zone Layout 41 | . 1 . . . . . 1 . . . . . . . . 1 1 . . 4 3 . 7 . . . . 7 . . . . 5 3 2 2 3 . 1 Protovariant Controls 3 | . . . . . . . . . . . . . . . . . . . . . . . . . . . . . . . . . . 3 . . . . . Activate Exoskeleton 1 | . . . . . . . . . . . . . . . . . . . . . . . . . . . . . . . . . . . . . 1 . . Fabricator Hacks 53 | . . . . . . . 13 . 5 . . . . . . 6 . . . . 11 . 4 . . . . 5 . . . . 9 . . . . . . Network Status 7 | . . . . . . . 1 . 1 . . . . . . 1 . . . . . . 1 . . . . 2 . . . . 1 . . . . . . Load Schematic 23 | . . . . . . . 6 . 2 . . . . . . 3 . . . . 5 . 2 . . . . 1 . . . . 4 . . . . . . Build 23 | . . . . . . . 6 . 2 . . . . . . 2 . . . . 6 . 1 . . . . 2 . . . . 4 . . . . . . Repair Station Hacks 39 | . . . . . . . . . . . . . . . . 4 3 . . . 13 . . . . . . 5 . . . . 7 2 . . . . 5 Scan Component 18 | . . . . . . . . . . . . . . . . 2 2 . . . 6 . . . . . . 2 . . . . 3 1 . . . . 2 Repair 17 | . . . . . . . . . . . . . . . . 2 1 . . . 6 . . . . . . 2 . . . . 3 1 . . . . 2 Refit 4 | . . . . . . . . . . . . . . . . . . . . . 1 . . . . . . 1 . . . . 1 . . . . . 1 Recycling Unit Hacks 8 | . 1 . 1 . . . . . . . . . . . . 2 . . . . 3 . . . . . . 1 . . . . . . . . . . . Report Inventory 1 | . . . . . . . . . . . . . . . . . . . . . 1 . . . . . . . . . . . . . . . . . . Retrieve Components 7 | . 1 . 1 . . . . . . . . . . . . 2 . . . . 2 . . . . . . 1 . . . . . . . . . . . Scanalyzer 32 | . . . 6 . 1 . 2 . 3 . . . . . . 4 . . . . 8 . . . . . . . . . . . 1 5 1 1 . . . Insert Component 8 | . . . 1 . . . 1 . . . . . . . . . . . . . 3 . . . . . . . . . . . 1 2 . . . . . Analyze 8 | . . . 1 . . . 1 . . . . . . . . . . . . . 5 . . . . . . . . . . . . 1 . . . . . Retrieve Study 16 | . . . 4 . 1 . . . 3 . . . . . . 4 . . . . . . . . . . . . . . . . . 2 1 1 . . . Garrison Access Hacks 29 | . . . . . 1 . 3 . 2 . . . . 1 . 4 . . . 2 4 . 1 . . . . 4 . . . . 4 1 2 . . . . Seal Access 29 | . . . . . 1 . 3 . 2 . . . . 1 . 4 . . . 2 4 . 1 . . . . 4 . . . . 4 1 2 . . . . Unauthorized Hacks 309 | . 11 . 17 . 16 6 24 . 6 . . . . 2 . 24 16 . . 20 52 . 24 . . . . 22 . . . . 30 9 13 1 13 . 3 Terminals 242 | . 9 . 17 . 16 6 21 . 6 . . . . 2 . 16 16 . . 20 28 . 18 . . . . 13 . . . . 16 8 13 1 13 . 3 Track 27 | . . . . . . . . . . . . . . . . . 3 . . 7 7 . 2 . . . . 2 . . . . 3 . 1 . 2 . . Assimilate 19 | . . . . . . . 3 . 1 . . . . . . 2 . . . 1 2 . 4 . . . . . . . . . 1 1 1 1 2 . . Botnet 67 | . 3 . 7 . 5 1 8 . 1 . . . . 1 . 4 5 . . 3 7 . 5 . . . . 3 . . . . 4 2 4 . 3 . 1 Disrupt 3 | . . . . . . . . . . . . . . . . . 2 . . . . . . . . . . . . . . . . . . . . . 1 Operators 16 | . 1 . 1 . 1 . . . . . . . . . . 1 1 . . 1 2 . 2 . . . . 1 . . . . 2 . 2 . 1 . . Skim 106 | . 5 . 9 . 10 5 10 . 4 . . . . 1 . 9 5 . . 4 10 . 5 . . . . 7 . . . . 6 5 5 . 5 . 1 Sabotage 4 | . . . . . . . . . . . . . . . . . . . . 4 . . . . . . . . . . . . . . . . . . . Fabricators 42 | . . . . . . . 2 . . . . . . . . 3 . . . . 12 . 6 . . . . 4 . . . . 14 1 . . . . . Report 7 | . . . . . . . . . . . . . . . . . . . . . 2 . 1 . . . . 1 . . . . 3 . . . . . . Prioritize 14 | . . . . . . . 1 . . . . . . . . 1 . . . . 5 . 2 . . . . 1 . . . . 4 . . . . . . Liberate 10 | . . . . . . . 1 . . . . . . . . . . . . . 3 . 1 . . . . 1 . . . . 4 . . . . . . Haulers 8 | . . . . . . . . . . . . . . . . 1 . . . . 2 . 1 . . . . 1 . . . . 3 . . . . . . Overload 1 | . . . . . . . . . . . . . . . . . . . . . . . . . . . . . . . . . . 1 . . . . . Recompile 2 | . . . . . . . . . . . . . . . . 1 . . . . . . 1 . . . . . . . . . . . . . . . . Repair Stations 1 | . . . . . . . . . . . . . . . . 1 . . . . . . . . . . . . . . . . . . . . . . . Patch 1 | . . . . . . . . . . . . . . . . 1 . . . . . . . . . . . . . . . . . . . . . . . Recycling Units 23 | . 2 . . . . . . . . . . . . . . 4 . . . . 12 . . . . . . 5 . . . . . . . . . . . Monitor 5 | . . . . . . . . . . . . . . . . 1 . . . . 3 . . . . . . 1 . . . . . . . . . . . Reject 6 | . . . . . . . . . . . . . . . . 1 . . . . 3 . . . . . . 2 . . . . . . . . . . . Recyclers 5 | . . . . . . . . . . . . . . . . 1 . . . . 3 . . . . . . 1 . . . . . . . . . . . Mask 5 | . . . . . . . . . . . . . . . . 1 . . . . 3 . . . . . . 1 . . . . . . . . . . . Tunnel 2 | . 2 . . . . . . . . . . . . . . . . . . . . . . . . . . . . . . . . . . . . . . Scanalyzers . | . . . . . . . . . . . . . . . . . . . . . . . . . . . . . . . . . . . . . . . . Garrison Access 1 | . . . . . . . 1 . . . . . . . . . . . . . . . . . . . . . . . . . . . . . . . . Jam 1 | . . . . . . . 1 . . . . . . . . . . . . . . . . . . . . . . . . . . . . . . . . Data Cores Recovered 9 | . . . . . . . 1 . . . . . . . . 3 1 . . 1 . . 1 . . . . 1 . . . . . 1 . . . . . Used 6 | . . . . . . . 1 . . . . . . . . 2 1 . . . . . 1 . . . . 1 . . . . . . . . . . . Hacking Detections 172 | . 7 . 9 . 10 5 27 . 8 . . . . 3 . 14 7 . . 10 21 . 10 . . . . 11 . . . . 11 5 3 4 4 . 3 Full Trace Events 24 | . . . . . . . 7 . 2 . . . . . . 1 . . . 1 6 . 1 . . . . 2 . . . . 4 . . . . . . Feedback Events 1 | . . . . . . . 1 . . . . . . . . . . . . . . . . . . . . . . . . . . . . . . . . Corruption 1 | . . . . . . . 1 . . . . . . . . . . . . . . . . . . . . . . . . . . . . . . . . Feedback Blocked . | . . . . . . . . . . . . . . . . . . . . . . . . . . . . . . . . . . . . . . . . Robot Schematics Acquired 56 | . . . . . . . . . . . . 6 . . . . . . . . . . . . . . . 49 . . . . . 1 . . . . . Robots Built 6 | . . . . . . . . . . . . . . . . . . . . . 3 . . . . . . 3 . . . . . . . . . . . Authchips . | . . . . . . . . . . . . . . . . . . . . . . . . . . . . . . . . . . . . . . . . Time 219 | . . . . . . . . . . . . . . . . . . . . . 50 . . . . . . 169 . . . . . . . . . . . Total Robot Build Rating 33 | . . . . . . . . . . . . . . . . . . . . . 15 . . . . . . 18 . . . . . . . . . . . Part Schematics Acquired 43 | . . . 1 . . . 2 . . . . 13 . . . 1 1 . . 1 6 . . . . . . 1 . . 4 . . 12 1 . . . . Parts Built 23 | . . . . . . . 8 . 2 . . . . . . 3 . . . . 4 . 1 . . . . 1 . . . . 4 . . . . . . Authchips 1 | . . . . . . . . . . . . . . . . 1 . . . . . . . . . . . . . . . . . . . . . . . Time 1429 | . . . . . . . 429 . 268 . . . . . . 102 . . . . 222 . 51 . . . . 102 . . . . 255 . . . . . . Total Part Build Rating 136 | . . . . . . . 36 . 8 . . . . . . 16 . . . . 28 . 8 . . . . 8 . . . . 32 . . . . . . Part Studies Acquired 16 | . . . 4 . 1 . . . 3 . . . . . . 4 . . . . . . . . . . . . . . . . . 2 1 1 . . . Parts Repaired 17 | . . . . . . . . . . . . . . . . 2 1 . . . 6 . . . . . . 2 . . . . 3 1 . . . . 2 Time 877 | . . . . . . . . . . . . . . . . 88 23 . . . 406 . . . . . . 54 . . . . 126 108 . . . . 72 Parts Recycled . | . . . . . . . . . . . . . . . . . . . . . . . . . . . . . . . . . . . . . . . . Recycled Matter . | . . . . . . . . . . . . . . . . . . . . . . . . . . . . . . . . . . . . . . . . Retrieved Matter . | . . . . . . . . . . . . . . . . . . . . . . . . . . . . . . . . . . . . . . . . Retrieved Components 20 | . . . 10 . . . . . . . . . . . . 2 . . . . 4 . . . . . . 4 . . . . . . . . . . . Parts Scanalyzed 6 | . . . 1 . . . 1 . . . . . . . . . . . . . 3 . . . . . . . . . . . . 1 . . . . . Part Schematics Acquired 6 | . . . 1 . . . 1 . . . . . . . . . . . . . 3 . . . . . . . . . . . . 1 . . . . . Parts Damaged 1 | . . . . . . . . . . . . . . . . . . . . . 1 . . . . . . . . . . . . . . . . . . Bothacking | -11 -10 -10 -9 -9 -8 -8 -7 -7 -7 -7 -7 -7 -6 -6 -6 -6 -6 -6 -6 -6 -5 -5 -5 -5 -5 -5 -4 -4 -4 -4 -4 -3 -3 -3 -2 -2 -2 -1 -1 ------------ Run | Yrd Mat Min Mat Min Mat Sto Fac Was Fac Low Low Dat Pro Fac Was Fac Ext Cet Arc Hub Fac Was Fac Upp Upp War Pro Fac Upp Upp Zhi Pro Res Tes Res Qua Sec Acc Com Used RIF Installer . | . . . . . . . . . . . . . . . . . . . . . . . . . . . . . . . . . . . . . . . . Robots Hacked 15 | . . . . . . . 3 . . . . 1 . . . 1 . . 1 . 3 . . . . 2 . 1 . . 3 . . . . . . . . Non-combat 8 | . . . . . . . 3 . . . . . . . . 1 . . 1 . 3 . . . . . . . . . . . . . . . . . . Combat 7 | . . . . . . . . . . . . 1 . . . . . . . . . . . . . 2 . 1 . . 3 . . . . . . . . Robot Hacks Applied 17 | . . . . . . . 3 . . . . 1 . . . 1 . . 2 . 3 . . . . 2 . 1 . . 4 . . . . . . . . parse_system 11 | . . . . . . . 1 . . . . 1 . . . 1 . . . . 1 . . . . 2 . 1 . . 4 . . . . . . . . no_distress 1 | . . . . . . . . . . . . . . . . . . . 1 . . . . . . . . . . . . . . . . . . . . find_chute 3 | . . . . . . . 1 . . . . . . . . . . . . . 2 . . . . . . . . . . . . . . . . . . check_alert 2 | . . . . . . . 1 . . . . . . . . . . . 1 . . . . . . . . . . . . . . . . . . . . Relay Couplers Released . | . . . . . . . . . . . . . . . . . . . . . . . . . . . . . . . . . . . . . . . . Fabnet Peak Effective % . | . . . . . . . . . . . . . . . . . . . . . . . . . . . . . . . . . . . . . . . . Robots Rewired 20 | . . . . . . . 1 . . . . . . . . . 18 . . . 1 . . . . . . . . . . . . . . . . . . Allies Hacked . | . . . . . . . . . . . . . . . . . . . . . . . . . . . . . . . . . . . . . . . . Hacks Repelled . | . . . . . . . . . . . . . . . . . . . . . . . . . . . . . . . . . . . . . . . . Allies | -11 -10 -10 -9 -9 -8 -8 -7 -7 -7 -7 -7 -7 -6 -6 -6 -6 -6 -6 -6 -6 -5 -5 -5 -5 -5 -5 -4 -4 -4 -4 -4 -3 -3 -3 -2 -2 -2 -1 -1 -------- Run | Yrd Mat Min Mat Min Mat Sto Fac Was Fac Low Low Dat Pro Fac Was Fac Ext Cet Arc Hub Fac Was Fac Upp Upp War Pro Fac Upp Upp Zhi Pro Res Tes Res Qua Sec Acc Com Total Allies 82 | . . . . . . . 7 19 1 . . . . . . 1 29 5 . . 6 . 2 . . . . 3 . . . . 1 1 1 1 2 3 . Largest Group 21 | . . . . . . . 4 19 16 8 8 8 1 1 . 1 18 21 16 15 3 . 1 . . . . 3 . . . . . 1 . 1 1 1 1 Highest-Rated Group 1204 | . . . . . . . 58 475 433 234 234 234 25 25 . 26 664 1082 936 777 87 . 26 . . . . 90 . . . . . 45 . 45 1204 1204 1204 Highest-Rated Ally 1204 | . . . . . . . 16 35 35 31 31 31 25 25 . 26 159 159 159 96 29 . 26 . . . . 30 . . . . . 45 . 45 1204 1204 1204 Total Orders 38 | . . . . . . . 15 . . . . . . . . 4 2 9 . 1 2 . . . . . . 4 . . . . . 1 . . . . . STAY 21 | . . . . . . . 10 . . . . . . . . 3 1 1 . . 1 . . . . . . 4 . . . . . 1 . . . . . ROAM 3 | . . . . . . . . . . . . . . . . . . 2 . 1 . . . . . . . . . . . . . . . . . . . FOLLOW 14 | . . . . . . . 5 . . . . . . . . 1 1 6 . . 1 . . . . . . . . . . . . . . . . . . Ally Attacks 686 | . . . . . . . 27 85 107 22 1 11 2 1 . . 162 44 10 117 31 . . . . . . 7 . . . . . . . . 2 12 45 Total Damage 20994 | . . . . . . . 286 2448 2070 295 20 195 109 . . . 3658 868 139 3198 525 . . . . . . 274 . . . . . . . . 708 1476 4725 Kills 110 | . . . . . . . 3 6 20 1 1 . . . . . 23 7 2 27 3 . . . . . . 2 . . . . . . . . 2 6 7 Allies Corrupted 5 | . . . . . . . . . . . . . . . . . . . . 4 1 . . . . . . . . . . . . . . . . . . Allies Melted . | . . . . . . . . . . . . . . . . . . . . . . . . . . . . . . . . . . . . . . . . Intel | -11 -10 -10 -9 -9 -8 -8 -7 -7 -7 -7 -7 -7 -6 -6 -6 -6 -6 -6 -6 -6 -5 -5 -5 -5 -5 -5 -4 -4 -4 -4 -4 -3 -3 -3 -2 -2 -2 -1 -1 ------- Run | Yrd Mat Min Mat Min Mat Sto Fac Was Fac Low Low Dat Pro Fac Was Fac Ext Cet Arc Hub Fac Was Fac Upp Upp War Pro Fac Upp Upp Zhi Pro Res Tes Res Qua Sec Acc Com Active Infowar (turns) 19516 | . . . 1302 1079 79 13 1649 158 663 306 235 66 267 154 11 1723 983 284 443 322 1803 14 1132 128 287 180 101 1662 81 120 50 64 1132 641 349 258 465 148 1164 Optics 16409 | . . . . . . . 1073 158 663 306 235 66 267 154 11 1723 972 284 443 322 1803 14 1132 128 287 133 101 1662 81 120 50 64 1132 641 349 258 465 148 1164 Sensors 16249 | . . . . . . 13 1489 148 661 306 235 66 267 154 9 1691 983 284 443 322 1748 14 1128 128 287 179 101 1625 . . . . 1011 641 349 258 465 148 1096 Structural 163 | . . . . . . . . . . . . . . . . . . . . . . . 163 . . . . . . . . . . . . . . . . Traps 2460 | . . . 1302 1079 79 . . . . . . . . . . . . . . . . . . . . . . . . . . . . . . . . . . T.N.C. 160 | . . . . . . . 160 . . . . . . . . . . . . . . . . . . . . . . . . . . . . . . . . Cloaking 1 | . . . . . . . . . . . . . . . . . . . . . . . . . . 1 . . . . . . . . . . . . . Robot Analysis Total 103 | . 2 . . . . . . . . . . . . . . . . . . . 3 . 5 . . . . 91 . . 1 . . . . . 1 . . Derelict Logs Recovered 10 | . . 2 . 2 . . . . . 1 . . . . . . . . . . . . . 1 1 . 2 . 1 . . . . . . . . . . Drone Launches . | . . . . . . . . . . . . . . . . . . . . . . . . . . . . . . . . . . . . . . . . Drone Recoveries . | . . . . . . . . . . . . . . . . . . . . . . . . . . . . . . . . . . . . . . . . Exploration | -11 -10 -10 -9 -9 -8 -8 -7 -7 -7 -7 -7 -7 -6 -6 -6 -6 -6 -6 -6 -6 -5 -5 -5 -5 -5 -5 -4 -4 -4 -4 -4 -3 -3 -3 -2 -2 -2 -1 -1 ------------- Run | Yrd Mat Min Mat Min Mat Sto Fac Was Fac Low Low Dat Pro Fac Was Fac Ext Cet Arc Hub Fac Was Fac Upp Upp War Pro Fac Upp Upp Zhi Pro Res Tes Res Qua Sec Acc Com Turns Passed 27803 | 29 1687 972 2201 1079 2607 1848 1980 158 663 306 235 66 267 154 11 1723 983 284 443 322 1803 14 1132 128 287 186 101 1662 81 120 50 64 1132 641 349 258 465 148 1164 Spaces Moved 43395 | 40 875 560 1057 664 1115 804 4675 181 1351 478 328 156 520 514 63 3616 1045 216 139 883 4558 84 2488 534 810 746 340 3240 349 390 164 266 2861 1826 1585 941 1316 452 1165 Core 91 | 40 50 . . . . . . . . . . . . . . . . . . . . 1 . . . . . . . . . . . . . . . . . Treads 5020 | . 825 560 1057 664 1115 799 . . . . . . . . . . . . . . . . . . . . . . . . . . . . . . . . . Legs . | . . . . . . . . . . . . . . . . . . . . . . . . . . . . . . . . . . . . . . . . Wheels . | . . . . . . . . . . . . . . . . . . . . . . . . . . . . . . . . . . . . . . . . Hover . | . . . . . . . . . . . . . . . . . . . . . . . . . . . . . . . . . . . . . . . . Flight 38284 | . . . . . . 5 4675 181 1351 478 328 156 520 514 63 3616 1045 216 139 883 4558 83 2488 534 810 746 340 3240 349 390 164 266 2861 1826 1585 941 1316 452 1165 Fastest Speed 5 | 50 50 160 145 150 148 27 20 17 14 26 17 14 17 23 14 5 5 11 11 11 5 11 5 5 5 23 5 5 23 11 23 11 5 6 7 7 6 17 17 Average Speed 37 | 50 153 160 153 150 152 157 26 24 25 26 25 24 25 24 16 23 22 22 22 22 22 21 22 22 22 23 22 19 23 22 23 22 21 16 15 16 16 17 17 Slowest Speed 450 | 50 160 160 160 150 156 160 93 26 26 26 26 26 26 26 23 88 88 23 23 88 91 450 26 23 23 23 23 23 26 23 23 23 26 85 17 17 17 17 17 Overloaded Moves 700 | . . . . . . . 1 28 9 . 2 21 6 . 44 32 33 12 1 33 75 50 125 8 5 . 16 80 . 6 . 8 14 40 6 7 38 . . Propulsion Burnouts . | . . . . . . . . . . . . . . . . . . . . . . . . . . . . . . . . . . . . . . . . Robots Hopped 183 | . . . . . . . 31 . 6 . . . . 3 . 23 10 . . 2 26 . 19 1 . . . 12 1 . . 2 16 6 14 1 8 2 . Potential Cave-ins . | . . . . . . . . . . . . . . . . . . . . . . . . . . . . . . . . . . . . . . . . Cave-ins Triggered . | . . . . . . . . . . . . . . . . . . . . . . . . . . . . . . . . . . . . . . . . Exploration Rate (%) 67 | 3 98 98 94 95 91 90 78 89 35 55 46 82 61 19 71 58 87 74 81 67 75 80 53 66 83 88 51 62 75 57 61 60 68 94 42 76 69 14 43 Regions Visited 39 Branch Regions 23 Pre-discovered Areas 25 | . 4 1 4 . 3 . 2 . . . . 1 . . . 1 1 . . . 2 . . . . . . 1 . . 3 . . . . . 2 . . Known Exits Taken 30 | . . 1 . 1 1 1 . . 1 1 1 1 1 . . 1 1 1 1 1 . . 1 1 1 1 1 1 1 1 1 1 1 1 1 1 1 1 . Unknown Exits Taken 3 | 1 1 . 1 . . . . . . . . . . . . . . . . . . . . . . . . . . . . . . . . . . . . Scrap Searched 21 | . . 1 . 2 . . . . . 2 4 . 3 . . . . . . . . . . 1 2 . 3 . 2 . . 1 . . . . . . . Spaces Dug 326 | . . 1 . . . . 43 . 7 1 . . 5 1 . 44 9 . . 17 57 . 18 1 6 . 2 40 . . . . 27 17 6 5 8 6 5 Terrain Destroyed 1435 | . . 1 13 14 . . 136 51 43 1 9 . 54 11 . 73 9 . . 350 102 . 18 1 6 . 2 145 . 39 . . 96 19 27 51 9 29 126 Melee 282 | . . . . . . . 43 . 7 1 . . 5 1 . 44 9 . . 6 57 . 18 1 6 . 2 13 . . . . 27 17 6 4 8 6 1 Projectile 24 | . . 1 . . . . . . . . . . . . . . . . . 1 . . . . . . . 3 . . . . . 2 . . . . 17 AOE 1113 | . . . 13 14 . . 92 51 36 . 9 . 49 10 . 29 . . . 343 45 . . . . . . 129 . 39 . . 69 . 21 40 . 23 101 Terrain Rammed . | . . . . . . . . . . . . . . . . . . . . . . . . . . . . . . . . . . . . . . . . Walls Destroyed . | . . . . . . . . . . . . . . . . . . . . . . . . . . . . . . . . . . . . . . . . Machines Disabled . | . . . . . . . . . . . . . . . . . . . . . . . . . . . . . . . . . . . . . . . . Actions | -11 -10 -10 -9 -9 -8 -8 -7 -7 -7 -7 -7 -7 -6 -6 -6 -6 -6 -6 -6 -6 -5 -5 -5 -5 -5 -5 -4 -4 -4 -4 -4 -3 -3 -3 -2 -2 -2 -1 -1 --------- Run | Yrd Mat Min Mat Min Mat Sto Fac Was Fac Low Low Dat Pro Fac Was Fac Ext Cet Arc Hub Fac Was Fac Upp Upp War Pro Fac Upp Upp Zhi Pro Res Tes Res Qua Sec Acc Com Total 52085 | 46 1046 595 1350 696 1768 1140 5178 282 1611 647 475 181 632 534 62 4260 1721 433 522 954 5148 83 2925 537 891 763 360 4037 347 418 177 267 3231 2086 1635 1010 1487 486 2064 Wait 5909 | . 37 2 31 1 438 81 322 83 206 158 144 21 96 11 . 356 595 189 347 26 445 . 322 4 66 . 15 538 . 15 . 4 236 157 15 27 106 8 807 Move 43013 | 39 874 559 1056 663 1114 803 4617 180 1339 477 327 155 519 508 62 3572 1025 215 138 878 4506 83 2451 531 809 745 339 3216 346 389 163 262 2830 1813 1561 938 1299 448 1164 Hop 162 | . . . . . . . 27 . 5 . . . . 3 . 20 9 . . 2 26 . 17 1 . . . 11 1 . . 1 14 6 9 1 8 1 . Pick Up 114 | 3 13 2 25 . 9 11 7 1 2 . . 1 . 2 . 4 . 1 . . 4 . 1 . . 2 1 1 . 1 1 . 5 9 3 3 2 . . Fast Attach 170 | 4 5 . 8 . 6 14 8 1 . 3 . . . . . 15 2 2 . . 11 . 13 . . 4 . 4 . 3 5 . 18 8 4 5 16 2 9 Attach 64 | . 2 . 2 . 3 5 3 1 . . 1 . . 3 . 3 . . . . 1 . 2 . . 1 1 3 . 3 . . 2 2 3 2 5 2 14 Detach 67 | . . . 1 . 2 . 5 . . . 1 . . 1 . 4 1 . . . 2 . 3 . . 2 . 4 . 3 . . 4 1 5 1 5 3 19 Swap 339 | . 24 5 18 2 18 39 15 5 9 . . 1 4 1 . 25 9 7 10 14 25 . 15 . 2 1 . 45 . . . . 17 13 8 5 1 1 . Drop 252 | . 8 2 37 . 27 39 12 3 1 2 . 1 . 1 . 14 2 4 5 . 10 . 11 . . 6 1 3 . 2 4 . 14 18 3 10 8 1 3 Fire 985 | . 81 17 149 24 139 134 21 8 4 . 2 . 3 1 . 45 24 15 5 23 20 . 40 . 6 . . 122 . 2 . . 16 22 5 8 10 2 37 Melee 733 | . . . . . . 9 113 . 24 7 . 2 9 3 . 112 46 . 17 11 81 . 46 1 8 2 3 43 . . 4 . 75 32 19 10 27 18 11 Ram . | . . . . . . . . . . . . . . . . . . . . . . . . . . . . . . . . . . . . . . . . Kick . | . . . . . . . . . . . . . . . . . . . . . . . . . . . . . . . . . . . . . . . . Crush 36 | . 2 8 3 6 12 5 . . . . . . . . . . . . . . . . . . . . . . . . . . . . . . . . . Escape Stasis 12 | . . . . . . . . . . . . . . . . . . . . . 9 . . . . . . 3 . . . . . . . . . . . Rewire . | . . . . . . . . . . . . . . . . . . . . . . . . . . . . . . . . . . . . . . . . Trap 229 | . . . 20 . . . 28 . 21 . . . 1 . . 90 8 . . . 8 . 4 . . . . 44 . . . . . 5 . . . . . Miscellaneous . | . . . . . . . . . . . . . . . . . . . . . . . . . . . . . . . . . . . . . . . . Route ------- -11/Scrapyard -10/Materials (discovered 5 exits: *Mat x3 / [*Min] / [*Sub]) -10/Mines (discovered 3 exits: *Mat x2 / [*Exi]) -9/Materials (discovered 5 exits: *Mat x3 / [*Min x2]) -9/Mines (discovered 2 exits: *Mat x2) -8/Materials (discovered 5 exits: *Fac x3 / *Sto x2) -8/Storage (discovered 2 exits: *Fac / Rec) -7/Factory (discovered 6 exits: *Fac x4 / *Low x2) -7/Waste -7/Factory (discovered 4 exits: Fac x3 / *Low) -7/Lower Caves -7/Lower Caves -7/Data Miner -6/Proximity Caves -6/Factory (discovered 2 exits: *Ext x2) -6/Waste -6/Factory (discovered 7 exits: *Fac x4 / Low x2 / *Ext) -6/Extension (discovered 3 exits: *Fac x2 / *Cet) -6/Cetus (discovered 2 exits: *Fac / *Arc) -6/Archives (discovered 3 exits: *Fac / *Hub x2) -6/Hub_04(d) (discovered 4 exits: *Fac x4) -5/Factory (discovered 6 exits: *Fac x4 / *Upp x2) -5/Waste -5/Factory (discovered 4 exits: *Fac x2 / *Upp x2) -5/Upper Caves -5/Upper Caves (discovered 2 exits: *Fac / *War) -5/Warlord -4/Proximity Caves -4/Factory (discovered 6 exits: *Res x4 / *Upp x2) -4/Upper Caves -4/Upper Caves (discovered 2 exits: Res / *Zhi) -4/Zhirov -3/Proximity Caves -3/Research (discovered 6 exits: *Res x3 / *Arm / *Tes x2) -3/Testing -2/Research (discovered 3 exits: *Acc / *Qua x2) -2/Quarantine (discovered 3 exits: Acc / *Sec / [*Frg]) -2/Section 7 -1/Access -1/Command (discovered 2 exits: *Sur x2) Tau Ceti IV Orbit History --------- Turn | Location | Event 17 | -11/Scrapyard | Discovered new exit (range 15) 30 | -11/Scrapyard | Entered Materials 265 | -10/Materials | Discovered new exit (range 16) 315 | -10/Materials | Build established: Mutant 557 | -10/Materials | Discovered new exit (range 15) 780 | -10/Materials | Discovered new exit (range 16) 782 | -10/Materials | Build established: Scavenger-Mutant 859 | -10/Materials | Learned Storage stockpile data 896 | -10/Materials | Learned location of Subcaves (-10) 922 | -10/Materials | Learned Storage emergency access door positions 937 | -10/Materials | Identified exit to Materials 944 | -10/Materials | Learned Storage stockpile data 945 | -10/Materials | Learned location of 2 exits from Subcaves 946 | -10/Materials | Learned Storage stockpile data 1553 | -10/Materials | Discovered new exit (range 8) 1717 | -10/Materials | Entered Mines 1829 | -10/Mines | Learned location of 1 exit from Materials 1935 | -10/Mines | Core integrity fell below 50% 2077 | -10/Mines | Deemed a non-threat by the Exiles lab entrance 2079 | -10/Mines | Discovered new exit (range 5) 2155 | -10/Mines | Learned Materials security intel 2260 | -10/Mines | Build established: Mutant 2328 | -10/Mines | Learned location of Storage (-8) 2440 | -10/Mines | Received a Rocket Launcher from a helpful Derelict 2689 | -10/Mines | Entered Materials 2689 | -9/Materials | Evolved 2 slots: Propulsion x1, Utility x1 2690 | -9/Materials | Identified exit to Materials 3280 | -9/Materials | Build established: Scavenger-Mutant 3778 | -9/Materials | Learned location of 1 exit from Recycling 3823 | -9/Materials | Learned location of Zion (-6) 3845 | -9/Materials | Discovered new exit (range 8) 3898 | -9/Materials | Learned Storage terminal intel 3966 | -9/Materials | Learned location of Recycling (-8) 4496 | -9/Materials | Discovered new exit (range 11) 4686 | -9/Materials | Central database locked down 4890 | -9/Materials | Entered Mines 4941 | -9/Mines | Core integrity fell below 50% 5037 | -9/Mines | Learned Materials trap positions 5069 | -9/Mines | Discovered exit to Materials (range 14) 5267 | -9/Mines | Found a Scrap Suit stashed away for nefarious purposes 5918 | -9/Mines | Discovered exit to Materials (range 14) 5969 | -9/Mines | Entered Materials 5969 | -8/Materials | Evolved 2 slots: Propulsion x1, Utility x1 5970 | -8/Materials | Identified exit to Storage 5971 | -8/Materials | Loaded intel: 14 trap records 6164 | -8/Materials | Garrison activated, responded to threat 6564 | -8/Materials | Learned 4 Recycling zone layouts 6655 | -8/Materials | Build established: Mutant 6692 | -8/Materials | Learned location of 1 exit from Storage 6783 | -8/Materials | Learned 4 Recycling zone layouts 6787 | -8/Materials | Central database locked down 6815 | -8/Materials | Identified exit to Factory 6859 | -8/Materials | Learned location of 1 exit from Storage 6911 | -8/Materials | Learned Storage stockpile data 6975 | -8/Materials | Learned Factory emergency access door positions 7211 | -8/Materials | Discovered exit to Factory (range 9) 8430 | -8/Materials | Learned Storage trap positions 8492 | -8/Materials | Learned Factory trap positions 8576 | -8/Materials | Entered Storage 8577 | -8/Storage | Identified exit to Recycling 8578 | -8/Storage | Loaded intel: 24 trap records 8581 | -8/Storage | Loaded intel: 10 terminal locations 9787 | -8/Storage | Build established: Scavenger-Mutant 10424 | -8/Storage | Entered Factory 10424 | -7/Factory | Evolved 2 slots: Utility x2 10425 | -7/Factory | Loaded intel: 124 trap records 10465 | -7/Factory | Discovered new exit (range 7) 10467 | -7/Factory | Identified exit to Lower Caves 10504 | -7/Factory | Fabricated Enh. Optical Array? 10582 | -7/Factory | Discovered new exit (range 14) 10586 | -7/Factory | Identified exit to Factory 10684 | -7/Factory | Build established: Hacker-Sprinter 10796 | -7/Factory | Discovered exit to Factory (range 14) 10953 | -7/Factory | Learned location of 1 exit from Extension 11087 | -7/Factory | Learned location of Warlord (-5) 11112 | -7/Factory | Learned location of 1 exit from Lower Caves 11126 | -7/Factory | Learned Extension stockpile data 11182 | -7/Factory | Learned Extension stockpile data 11226 | -7/Factory | Learned Extension stockpile data 11278 | -7/Factory | Learned location of Extension (-6) 11664 | -7/Factory | Found Powered Armor 11704 | -7/Factory | Build established: Hacker-Scout 11772 | -7/Factory | Fabricated Cld. VTOL Module? 11838 | -7/Factory | Fabricated Hyp. Gauss Rifle? 12036 | -7/Factory | Fabricated Cld. VTOL Module (x1) 12055 | -7/Factory | Central database locked down 12130 | -7/Factory | Fabricated Cld. VTOL Module? 12247 | -7/Factory | Fabricated Cld. VTOL Module? 12313 | -7/Factory | Learned location of 2 exits from Factory 12375 | -7/Factory | Learned location of 1 exit from Extension 12404 | -7/Factory | Sucked down chute 12404 | -7/Factory | Entered Waste 12405 | -7/Waste | Identified exit to Factory 12406 | -7/Waste | Spotted C-40 Crusher 12409 | -7/Waste | Spotted C-40 Crusher 12409 | -7/Waste | Spotted C-40 Crusher 12416 | -7/Waste | Spotted C-40 Crusher 12426 | -7/Waste | Spotted C-40 Crusher 12431 | -7/Waste | Spotted C-40 Crusher 12438 | -7/Waste | Warlord forces began an assault 12448 | -7/Waste | Allies destroyed C-40 Crusher 12454 | -7/Waste | Allies destroyed C-40 Crusher 12456 | -7/Waste | Allies destroyed C-40 Crusher 12457 | -7/Waste | Destroyed C-40 Crusher 12458 | -7/Waste | Allies destroyed C-40 Crusher 12482 | -7/Waste | Lost 3 allies 12562 | -7/Waste | Entered Factory 12562 | -7/Factory | Accompanied by 16 allies 12637 | -7/Factory | Garrison activated, responded to threat 12661 | -7/Factory | Discovered exit to Lower Caves (range 5) 12740 | -7/Factory | Fabricated Cld. VTOL Module (x1) 12764 | -7/Factory | Fabricated Cld. VTOL Module (x1) 12803 | -7/Factory | Central database locked down 12978 | -7/Factory | Destroyed 7 combat bots 13045 | -7/Factory | Build established: Machinist-Scout 13225 | -7/Factory | Entered Lower Caves 13225 | -7/Lower Caves | Accompanied by 8 allies 13226 | -7/Lower Caves | Identified exit to Lower Caves 13431 | -7/Lower Caves | Found Alien Artifact 13431 | -7/Lower Caves | Identified Core Expander 13431 | -7/Lower Caves | Installed Core Expander, added new Weapon slot 13531 | -7/Lower Caves | Entered another Lower Caves area 13531 | -7/Lower Caves | Accompanied by 8 allies 13616 | -7/Lower Caves | Attracted the attention of an 0b10 checkpoint 13636 | -7/Lower Caves | Discovered new exit (range 16) 13723 | -7/Lower Caves | Identified exit to Data Miner 13766 | -7/Lower Caves | Entered Data Miner 13766 | -7/Data Miner | Accompanied by 8 allies 13766 | -7/Data Miner | Discovered new exit (range 6) 13770 | -7/Data Miner | Met Data Miner 13780 | -7/Data Miner | Learned location of Section 7 (-2) 13780 | -7/Data Miner | Acquired the access code to Warlord's prototype stash 13784 | -7/Data Miner | Received God Mode back door access code from Data Miner 13823 | -7/Data Miner | Destroyed Data Miner 13823 | -7/Data Miner | Data Conduit disabled 13826 | -7/Data Miner | Found System Mapper 13827 | -7/Data Miner | Found Ghost Barrier 13832 | -7/Data Miner | Identified exit to Proximity Caves 13832 | -7/Data Miner | Entered Proximity Caves 13832 | -6/Proximity Caves | Accompanied by 1 ally 13863 | -6/Proximity Caves | Lost 4 allies 14031 | -6/Proximity Caves | Attracted the attention of an 0b10 checkpoint 14059 | -6/Proximity Caves | Discovered exit to Factory (range 11) 14099 | -6/Proximity Caves | Entered Factory 14099 | -6/Factory | Accompanied by 1 ally 14099 | -6/Factory | Evolved 2 slots: Propulsion x1, Utility x1 14100 | -6/Factory | Identified exit to Extension 14138 | -6/Factory | Build established: Hacker-Scout 14160 | -6/Factory | Spotted B-75 Beast 14211 | -6/Factory | Discovered exit to Extension (range 10) 14253 | -6/Factory | Sucked down chute 14253 | -6/Factory | Entered Waste 14258 | -6/Waste | Spotted C-40 Crusher 14262 | -6/Waste | Spotted C-40 Crusher 14262 | -6/Waste | Spotted C-40 Crusher 14263 | -6/Waste | Discovered new exit (range 10) 14263 | -6/Waste | Spotted C-40 Crusher 14263 | -6/Waste | Spotted C-40 Crusher 14263 | -6/Waste | Spotted C-40 Crusher 14264 | -6/Waste | Identified exit to Factory 14264 | -6/Waste | Entered Factory 14362 | -6/Factory | Fabricated Cld. VTOL Module? 14686 | -6/Factory | Unchained authorized (6S-H0T) 14703 | -6/Factory | Learned Extension trap positions 14725 | -6/Factory | Repaired Powered Armor 14755 | -6/Factory | Identified exit to Lower Caves 14755 | -6/Factory | Identified exit to Factory 14910 | -6/Factory | Destroyed 6S-H0T 14918 | -6/Factory | Found Prototype Processor 14918 | -6/Factory | Identified Exp. Targeting Computer 14932 | -6/Factory | Found Prototype Ballistic Gun 14932 | -6/Factory | Identified 6S-H0T's Six Shooter 15036 | -6/Factory | Discovered exit to Extension (range 22) 15131 | -6/Factory | Learned Extension terminal intel 15139 | -6/Factory | Fabricated Hyp. Gauss Cannon (x2) 15161 | -6/Factory | Loaded intel: 6 fabricator locations 15176 | -6/Factory | Spotted B-75 Beast 15183 | -6/Factory | Learned location of 3 exits from Factory 15226 | -6/Factory | Learned Extension stockpile data 15298 | -6/Factory | Learned Extension garrison access intel 15521 | -6/Factory | Discovered exit to Factory (range 19) 15913 | -6/Factory | Repaired Powered Armor 15987 | -6/Factory | Entered Extension 15988 | -6/Extension | Identified exit to Cetus 15989 | -6/Extension | Loaded intel: 16 trap records 15991 | -6/Extension | Loaded intel: 17 terminal locations 16031 | -6/Extension | Rescued a captive Derelict 16086 | -6/Extension | Rescued a captive Derelict 16146 | -6/Extension | Rescued a captive Derelict 16148 | -6/Extension | Rescued a captive Derelict 16211 | -6/Extension | Rescued A7 16223 | -6/Extension | Lost 8 allies 16240 | -6/Extension | Spotted B-75 Beast 16242 | -6/Extension | Rescued a captive Derelict 16531 | -6/Extension | Destroyed B-75 Beast 16536 | -6/Extension | Spotted B-75 Beast 16606 | -6/Extension | Allies destroyed B-75 Beast 16632 | -6/Extension | Rescued a captive Derelict 16633 | -6/Extension | Rescued a captive Derelict 16637 | -6/Extension | Rescued a captive Derelict 16679 | -6/Extension | Rescued a captive Derelict 16679 | -6/Extension | Rescued a captive Derelict 16710 | -6/Extension | Repaired Cld. VTOL Module 16756 | -6/Extension | Learned Factory recycling unit intel 16806 | -6/Extension | Learned 2 Upper Caves zone layouts 16844 | -6/Extension | Loaded intel: 18 interactive machine locations 16861 | -6/Extension | Discovered exit to Factory (range 10) 16891 | -6/Extension | Learned Extension stockpile data 16970 | -6/Extension | Entered Cetus 16970 | -6/Cetus | Accompanied by 17 allies (A7) 16975 | -6/Cetus | Acquired a Cetus Manufacturing Module code from A7 16992 | -6/Cetus | Spotted Cetus Guard 16992 | -6/Cetus | Spotted Cetus Guard 16996 | -6/Cetus | Spotted Cetus Guard 16998 | -6/Cetus | Allies destroyed Cetus Guard 17000 | -6/Cetus | Destroyed Cetus Guard 17000 | -6/Cetus | Allies destroyed Cetus Guard 17001 | -6/Cetus | Spotted Cetus Guard 17003 | -6/Cetus | Allies destroyed Cetus Guard 17023 | -6/Cetus | Started Cetus Manufacturing Module 17040 | -6/Cetus | Escorted A7 to Cetus Mainframe 17047 | -6/Cetus | Discovered new exit (range 22) 17048 | -6/Cetus | Manufactured an Enhanced Grunt 17055 | -6/Cetus | Build established: Commander-Scout 17073 | -6/Cetus | Manufactured an Enhanced Grunt 17098 | -6/Cetus | Manufactured an Enhanced Grunt 17123 | -6/Cetus | Manufactured an Enhanced Grunt 17148 | -6/Cetus | Manufactured an Enhanced Grunt 17151 | -6/Cetus | Spotted Cetus Guard 17151 | -6/Cetus | Spotted Cetus Guard 17154 | -6/Cetus | Spotted Cetus Guard 17154 | -6/Cetus | Spotted Cetus Guard 17171 | -6/Cetus | Destroyed Cetus Guard 17173 | -6/Cetus | Destroyed Cetus Guard 17179 | -6/Cetus | Destroyed Cetus Guard 17179 | -6/Cetus | Allies destroyed Cetus Guard 17191 | -6/Cetus | Discovered exit to Factory (range 21) 17194 | -6/Cetus | Met Revision 17 17202 | -6/Cetus | Identified exit to Archives 17210 | -6/Cetus | Lost 5 allies 17254 | -6/Cetus | Entered Archives 17254 | -6/Archives | Accompanied by 16 allies (A7) 17259 | -6/Archives | Received a hacking code to weaken MAIN.C 17283 | -6/Archives | Discovered exit to Factory (range 20) 17287 | -6/Archives | Discovered new exit (range 19) 17290 | -6/Archives | Discovered new exit (range 17) 17421 | -6/Archives | Identified exit to Hub_04(d) 17697 | -6/Archives | Entered Hub_04(d) 17697 | -6/Hub_04(d) | Accompanied by 15 allies 17790 | -6/Hub_04(d) | Lost 4 allies 17799 | -6/Hub_04(d) | Garrison activated, responded to threat 17961 | -6/Hub_04(d) | Network Hub disabled 17970 | -6/Hub_04(d) | Spotted Lightning 17973 | -6/Hub_04(d) | Network Hub disabled 17989 | -6/Hub_04(d) | Network Hub disabled 18000 | -6/Hub_04(d) | Lost 3 allies 18000 | -6/Hub_04(d) | Network Hub disabled 18019 | -6/Hub_04(d) | Entered Factory 18019 | -5/Factory | Evolved 2 slots: Power x1, Utility x1 18020 | -5/Factory | Identified exit to Factory 18020 | -5/Factory | Identified exit to Upper Caves 18021 | -5/Factory | Loaded intel: 8 recycling unit locations 18050 | -5/Factory | Build established: Hacker-Scout 18201 | -5/Factory | Learned 2 Extension zone layouts 18204 | -5/Factory | Discovered exit to Factory (range 19) 18235 | -5/Factory | Discovered exit to Factory (range 20) 18240 | -5/Factory | Repaired Cld. VTOL Module? 18252 | -5/Factory | Learned location of 3 exits from Research 18310 | -5/Factory | Spotted B-75 Beast 18326 | -5/Factory | Learned Research non-interactive machine intel 18348 | -5/Factory | Learned Research recycling unit intel 18359 | -5/Factory | Learned location of Proximity Caves (-5) 18370 | -5/Factory | Learned Extension trap positions 18389 | -5/Factory | Learned Extension emergency access door positions 18400 | -5/Factory | Fabricated G-50 Soldier (x3) 18417 | -5/Factory | Fabricated Adv. Hacking Suite (x1) 18477 | -5/Factory | Fabricated Adv. Hacking Suite? 18749 | -5/Factory | Build established: Wizard-Scout 18871 | -5/Factory | Cargo convoy interrupted 18911 | -5/Factory | Found Prototype Launcher 18911 | -5/Factory | Identified Hellfire Missile Launcher 18938 | -5/Factory | Found Prototype Processor 19055 | -5/Factory | Repaired Powered Armor 19094 | -5/Factory | Identified Spectral Analyzer 19383 | -5/Factory | Learned Armory stockpile data 19415 | -5/Factory | Learned Extension trap positions 19430 | -5/Factory | Fabricated Cld. Impulse Thruster (x1) 19435 | -5/Factory | Learned Testing terminal intel 19446 | -5/Factory | Learned location of 1 exit from Testing 19447 | -5/Factory | Learned Testing scanalyzer intel 19448 | -5/Factory | Loaded intel: 6 repair station locations 19449 | -5/Factory | Learned Research recycling unit intel 19454 | -5/Factory | Learned location of 2 exits from Factory 19470 | -5/Factory | Learned Armory repair station intel 19485 | -5/Factory | Fabricated Cld. Impulse Thruster (x1) 19495 | -5/Factory | Learned 4 Research zone layouts 19649 | -5/Factory | Repaired Powered Armor 19715 | -5/Factory | Repaired Adv. Datajack? 19727 | -5/Factory | Repaired Broken Cld. Impulse Thruster? 19795 | -5/Factory | Repaired Adv. Sensor Array? 19822 | -5/Factory | Sucked down chute 19822 | -5/Factory | Entered Waste 19823 | -5/Waste | Spotted C-40 Crusher 19828 | -5/Waste | Spotted C-40 Crusher 19833 | -5/Waste | Spotted C-40 Crusher 19833 | -5/Waste | Spotted C-40 Crusher 19833 | -5/Waste | Spotted C-40 Crusher 19834 | -5/Waste | Spotted C-40 Crusher 19835 | -5/Waste | Discovered new exit (range 12) 19836 | -5/Waste | Identified exit to Factory 19836 | -5/Waste | Entered Factory 19931 | -5/Factory | Discovered exit to Factory (range 16) 19999 | -5/Factory | Unchained authorized (DW-4LL) 20112 | -5/Factory | DW-4LL burst out of a wall 20553 | -5/Factory | Destroyed DW-4LL 20603 | -5/Factory | Build established: Hacker-Scout 20670 | -5/Factory | Fabricated Cld. Impulse Thruster (x1) 20702 | -5/Factory | Cargo convoy interrupted 20831 | -5/Factory | Found Prototype Device 20831 | -5/Factory | Identified Exp. Actuator Array 20837 | -5/Factory | Found Prototype Device 20837 | -5/Factory | Identified Adv. Kinecellerator 20946 | -5/Factory | Spotted B-75 Beast 20957 | -5/Factory | Central database locked down 20968 | -5/Factory | Entered Upper Caves 20981 | -5/Upper Caves | Learned Factory terminal intel 21003 | -5/Upper Caves | Encountered a Warlord checkpoint 21061 | -5/Upper Caves | Learned location of 2 exits from Lower Caves 21061 | -5/Upper Caves | Learned location of 1 exit from Proximity Caves 21061 | -5/Upper Caves | Learned Factory trap positions 21061 | -5/Upper Caves | Learned Research trap positions 21061 | -5/Upper Caves | Learned Armory emergency access door positions 21061 | -5/Upper Caves | Learned Factory stockpile data 21061 | -5/Upper Caves | Learned Research stockpile data 21087 | -5/Upper Caves | Discovered new exit (range 5) 21096 | -5/Upper Caves | Identified exit to Upper Caves 21096 | -5/Upper Caves | Entered another Upper Caves area 21102 | -5/Upper Caves | Discovered exit to Factory (range 12) 21106 | -5/Upper Caves | Spotted B-75 Beast 21152 | -5/Upper Caves | Learned 4 Factory zone layouts 21175 | -5/Upper Caves | Encountered a Warlord checkpoint 21196 | -5/Upper Caves | Build established: Wizard-Scout 21264 | -5/Upper Caves | Lost 3 allies 21382 | -5/Upper Caves | Discovered new exit (range 3) 21383 | -5/Upper Caves | Identified exit to Warlord 21383 | -5/Upper Caves | Entered Warlord 21391 | -5/Warlord | System corruption cleaned by Quarantine Array 21444 | -5/Warlord | Opened Warlord's prototype stash 21450 | -5/Warlord | Found Prototype Device 21450 | -5/Warlord | Identified Exp. Cloaking Device 21453 | -5/Warlord | Found Prototype Processor 21453 | -5/Warlord | Identified Exp. Core Analyzer 21497 | -5/Warlord | Warlord's base attacked by MAIN.C 21508 | -5/Warlord | Found Prototype Energy Gun 21508 | -5/Warlord | Identified Vortex Rifle 21523 | -5/Warlord | Met Warlord 21566 | -5/Warlord | Discovered new exit (range 16) 21569 | -5/Warlord | Identified exit to Proximity Caves 21569 | -5/Warlord | Entered Proximity Caves 21575 | -4/Proximity Caves | Attracted the attention of an 0b10 checkpoint 21599 | -4/Proximity Caves | Found Alien Artifact 21605 | -4/Proximity Caves | Spotted B-86 Titan 21657 | -4/Proximity Caves | Learned Research garrison access intel 21670 | -4/Proximity Caves | Entered Factory 21670 | -4/Factory | Evolved 2 slots: Propulsion x1, Utility x1 21671 | -4/Factory | Identified exit to Research 21673 | -4/Factory | Loaded intel: 121 trap records 21675 | -4/Factory | Loaded intel: 26 terminal locations 21724 | -4/Factory | Unchained authorized (CL-0N3) 21747 | -4/Factory | Destroyed 7 combat bots 21793 | -4/Factory | Fabricated B-60 Warrior (x3) 21895 | -4/Factory | Fabricated Exp. Sensor Array (x1) 21926 | -4/Factory | K-01 Serf reconstituted as Armor Guard 21926 | -4/Factory | Spotted Armor Guard 22027 | -4/Factory | Destroyed Armor Guard 22027 | -4/Factory | Armor Guard reconstituted as CL-0N3 22123 | -4/Factory | Repaired Cld. Impulse Thruster 22222 | -4/Factory | R-10 Processor reconstituted as Cetus Guard 22222 | -4/Factory | Spotted Cetus Guard 22276 | -4/Factory | Destroyed Cetus Guard 22276 | -4/Factory | Cetus Guard reconstituted as CL-0N3 22284 | -4/Factory | Identified Dimensional Node Initializer 22284 | -4/Factory | Initialized slip node 22311 | -4/Factory | Destroyed CL-0N3 22313 | -4/Factory | Extracted schematics, analyses from CL-0N3's data core 22353 | -4/Factory | Repaired Adv. Trap Extractor 22382 | -4/Factory | Spotted B-86 Titan 22387 | -4/Factory | Identified exit to Upper Caves 22735 | -4/Factory | Learned Research machine intel 22803 | -4/Factory | Learned Testing trap positions 22828 | -4/Factory | Learned 2 Upper Caves zone layouts 22829 | -4/Factory | Learned Armory repair station intel 22846 | -4/Factory | Learned Factory trap positions 22918 | -4/Factory | Central database locked down 23045 | -4/Factory | Unchained authorized (QV-33N) 23332 | -4/Factory | Entered Upper Caves 23333 | -4/Upper Caves | Identified exit to Upper Caves 23333 | -4/Upper Caves | Learned Research trap positions 23364 | -4/Upper Caves | Lost 4 parts (1p1n1u1w) 23413 | -4/Upper Caves | Entered another Upper Caves area 23440 | -4/Upper Caves | Ambushed by research squad 23458 | -4/Upper Caves | Spotted B-86 Titan 23509 | -4/Upper Caves | Discovered new exit (range 18) 23532 | -4/Upper Caves | Identified exit to Zhirov 23533 | -4/Upper Caves | Entered Zhirov 23533 | -4/Zhirov | Discovered new exit (range 3) 23538 | -4/Zhirov | Met Zhirov 23550 | -4/Zhirov | Learned location of Quarantine (-2) 23551 | -4/Zhirov | Zhirov requested help retrieving the SGEMP Prototype 23563 | -4/Zhirov | Found Alien Artifact 23567 | -4/Zhirov | Found Alien Artifact 23567 | -4/Zhirov | Identified Integrated Dissipator 23567 | -4/Zhirov | Installed Integrated Dissipator, increased core heat dissipation (+20) 23583 | -4/Zhirov | Identified exit to Proximity Caves 23583 | -4/Zhirov | Entered Proximity Caves 23594 | -3/Proximity Caves | Encountered an infested base 23595 | -3/Proximity Caves | Build established: Wizard-Sprinter 23647 | -3/Proximity Caves | Entered Research 23647 | -3/Research | Evolved 2 slots: Propulsion x1, Utility x1 23648 | -3/Research | Identified exit to Testing 23649 | -3/Research | Identified exit to Research 23651 | -3/Research | Loaded intel: 60 trap records 23653 | -3/Research | Loaded intel: 103 machine locations 23654 | -3/Research | Loaded intel: 61 non-interactive machine locations 23655 | -3/Research | Loaded intel: 5 recycling unit locations 23656 | -3/Research | Loaded intel: 4 garrison access locations 23663 | -3/Research | Discovered new exit (range 23) 23669 | -3/Research | Identified exit to Armory 23847 | -3/Research | Revision forces began assault on 0b10 23904 | -3/Research | Repaired Centrium Medium Armor Plating 23962 | -3/Research | Spotted B-86 Titan 24049 | -3/Research | Build established: Wizard-Scout 24074 | -3/Research | Fabricated Cld. Impulse Thruster (x1) 24084 | -3/Research | Met up with Revision 17++ 24085 | -3/Research | Identified Transdimensional Reconstructor 24103 | -3/Research | Learned location of 1 exit from Armory 24155 | -3/Research | Learned Quarantine stockpile data 24161 | -3/Research | Repaired Cld. Impulse Thruster 24195 | -3/Research | Learned 4 Access zone layouts 24198 | -3/Research | Repaired Cld. Impulse Thruster 24225 | -3/Research | Learned Research recycling unit intel 24227 | -3/Research | Lost 5 allies 24269 | -3/Research | Learned Access repair station intel 24322 | -3/Research | Fabricated Cld. Impulse Thruster (x1) 24347 | -3/Research | Research terminal network offline 24349 | -3/Research | Fabricated Exp. Sensor Array (x1) 24462 | -3/Research | Found Prototype Launcher 24462 | -3/Research | Identified Adv. Micro-nuke Launcher 24675 | -3/Research | Fabricated Exp. Sensor Array (x1) 24695 | -3/Research | Found Fusion Bomb Launcher 24779 | -3/Research | Entered Testing 24781 | -3/Testing | Loaded intel: 18 trap records 24782 | -3/Testing | Loaded intel: 11 terminal locations 24783 | -3/Testing | Loaded intel: 3 scanalyzer locations 24788 | -3/Testing | Protovariant out of control (PP-O0GV34VT9U) 24788 | -3/Testing | Unleashed a protovariant (PP-O0GV34VT9U) 24827 | -3/Testing | Spotted Striker 24831 | -3/Testing | Spotted Striker 24940 | -3/Testing | Spotted Alpha 7 24940 | -3/Testing | Stole the SGEMP Prototype 24970 | -3/Testing | Spotted PP-O0GV34VT9U 24982 | -3/Testing | Learned location of 1 exit from Testing 25091 | -3/Testing | Repaired Cld. Impulse Thruster? 25115 | -3/Testing | Learned Research stockpile data 25168 | -3/Testing | Learned 4 Research zone layouts 25212 | -3/Testing | Learned location of 1 exit from Testing 25284 | -3/Testing | Learned 4 Research zone layouts 25295 | -3/Testing | Found Prototype Energy Cannon 25295 | -3/Testing | Identified Cld. Nova Cannon 25335 | -3/Testing | Learned Research recycling unit intel 25345 | -3/Testing | Central database locked down 25403 | -3/Testing | Found Prototype Ballistic Cannon 25403 | -3/Testing | Identified Perforator 25420 | -3/Testing | Entered Research 25420 | -2/Research | Warlord forces began assault on 0b10 25420 | -2/Research | Evolved 2 slots: Propulsion x1, Utility x1 25421 | -2/Research | Identified exit to Access 25422 | -2/Research | Loaded intel: 87 trap records 25424 | -2/Research | Loaded intel: 5 recycling unit locations 25433 | -2/Research | Identified exit to Quarantine 25482 | -2/Research | Met up with Warlord 25530 | -2/Research | Research machine network offline 25630 | -2/Research | Found Gamma Bomb Array 25724 | -2/Research | Found Exp. Core Analyzer 25769 | -2/Research | Entered Quarantine 25850 | -2/Quarantine | Found Alien Artifact 25850 | -2/Quarantine | Identified Core Reset Matrix 25850 | -2/Quarantine | Used Core Reset Matrix 25854 | -2/Quarantine | Detected hypermatrix surge 25854 | -2/Quarantine | Sensed 6 artifacts in vicinity 25875 | -2/Quarantine | Found Subatomic Replicator 25919 | -2/Quarantine | Found Terrabomb 25939 | -2/Quarantine | Used Terrabomb 25942 | -2/Quarantine | Met incapacitated Sigix Warrior 25942 | -2/Quarantine | Lockdown squad dispatched 25943 | -2/Quarantine | Acquired the access code to the Sigix quarantine chamber 25943 | -2/Quarantine | Unlocked Sigix quarantine chamber 25944 | -2/Quarantine | Found Sigix Containment Pod 26002 | -2/Quarantine | Central database locked down 26013 | -2/Quarantine | Spotted Fortress 26026 | -2/Quarantine | Discovered new exit (range 6) 26026 | -2/Quarantine | Discovered new exit (range 7) 26026 | -2/Quarantine | Identified exit to Section 7 26027 | -2/Quarantine | Entered Section 7 26028 | -2/Section 7 | Detected hypermatrix surge 26028 | -2/Section 7 | Sensed 21 artifacts in vicinity 26063 | -2/Section 7 | Spotted B-90 Cyclops 26067 | -2/Section 7 | Found Integrated Reactor 26067 | -2/Section 7 | Installed Integrated Reactor, increased core energy generation (+10) 26082 | -2/Section 7 | Found Integrated Reactor 26082 | -2/Section 7 | Installed Integrated Reactor, increased core energy generation (+10) 26090 | -2/Section 7 | Found Integrity Redistributor 26112 | -2/Section 7 | Discovered exit to Access (range 19) 26116 | -2/Section 7 | Spotted Alpha 7 26117 | -2/Section 7 | Spotted Alpha 7 26118 | -2/Section 7 | Used Integrity Redistributor, redistributed integrity from core (-133) 26120 | -2/Section 7 | Spotted B-99 Colossus 26137 | -2/Section 7 | Found Integrated Reactor 26137 | -2/Section 7 | Installed Integrated Reactor, increased core energy generation (+10) 26145 | -2/Section 7 | Used Subatomic Replicator to replicate LRC Inertial Stabilizer 26146 | -2/Section 7 | Found LRC Inertial Stabilizer 26146 | -2/Section 7 | Installed LRC Inertial Stabilizer, increased mass support (+10) 26148 | -2/Section 7 | Installed LRC Inertial Stabilizer, increased mass support (+10) 26150 | -2/Section 7 | Found LRC Energy Well 26150 | -2/Section 7 | Installed LRC Energy Well, increased energy storage capacity (+250) 26152 | -2/Section 7 | Found LRC Armor 26152 | -2/Section 7 | Installed LRC Armor, increased core integrity (+250) 26185 | -2/Section 7 | Learned Research terminal intel 26208 | -2/Section 7 | Spotted Striker 26209 | -2/Section 7 | Spotted Striker 26212 | -2/Section 7 | Learned Research fabricator intel 26239 | -2/Section 7 | Learned 4 Research zone layouts 26249 | -2/Section 7 | Spotted Striker 26249 | -2/Section 7 | Spotted Striker 26255 | -2/Section 7 | Found Sigix Shearcannon 26260 | -2/Section 7 | Learned Access emergency access door positions 26268 | -2/Section 7 | Destroyed Striker 26274 | -2/Section 7 | Destroyed Striker 26277 | -2/Section 7 | Search patrols dispatched 26343 | -2/Section 7 | Destroyed Striker 26367 | -2/Section 7 | Destroyed Striker 26430 | -2/Section 7 | Spotted Executioner 26432 | -2/Section 7 | Activated Sigix Exoskeleton 26432 | -2/Section 7 | Received instructions from Sigix Warrior 26492 | -2/Section 7 | Entered Access 26492 | -1/Access | Accompanied by 1 ally (Sigix Warrior) 26492 | -1/Access | Evolved 2 slots: Propulsion x1, Utility x1 26493 | -1/Access | Attacked by Zhirov 26499 | -1/Access | Allies destroyed Svarog 26501 | -1/Access | Destroyed Zhirov 26504 | -1/Access | Found Prototype Hackware 26504 | -1/Access | Identified Quantum Router 26504 | -1/Access | Allies destroyed Perun 26506 | -1/Access | Found Prototype Hackware 26506 | -1/Access | Identified Deep Network Scanner 26508 | -1/Access | Found Deep Network Scanner 26560 | -1/Access | Energy Cycler disabled 26631 | -1/Access | Discovered new exit (range 9) 26640 | -1/Access | Identified exit to Command 26640 | -1/Access | Entered Command 26640 | -1/Command | Accompanied by 1 ally (Sigix Warrior) 26690 | -1/Command | Repaired Imp. Diametric Drive 26728 | -1/Command | Repaired Centrium Medium Armor Plating 26737 | -1/Command | Spotted M Guard 26737 | -1/Command | Spotted M Guard 26737 | -1/Command | Spotted Combat Programmer 26737 | -1/Command | Spotted Combat Programmer 26763 | -1/Command | Allies destroyed Combat Programmer 26814 | -1/Command | Sigix Exoskeleton integrity reduced to 80% 26816 | -1/Command | Allies destroyed M Guard 26826 | -1/Command | Allies destroyed M Guard 26826 | -1/Command | All MAIN.C guards destroyed 26859 | -1/Command | Met MAIN.C 26859 | -1/Command | Received instructions from Sigix Warrior 26875 | -1/Command | 0b10 Conduit disabled 26897 | -1/Command | MAIN.C's shell transforms into a squad of autonomous robots 26897 | -1/Command | Allies destroyed MAIN.C Shell 26897 | -1/Command | Spotted M Shell/Def 26897 | -1/Command | Spotted M Shell/Atk 26897 | -1/Command | Spotted M Shell/Def 26897 | -1/Command | Spotted M Shell/Atk 26897 | -1/Command | Spotted M Shell/Atk 26897 | -1/Command | Spotted M Shell/Def 26897 | -1/Command | Spotted M Shell/Atk 26897 | -1/Command | Spotted M Shell/Def 26898 | -1/Command | MAIN.C activated Command garrisons 26901 | -1/Command | Spotted Alpha 7 26919 | -1/Command | Phase Generator disabled 26958 | -1/Command | Sigix Exoskeleton integrity reduced to 60% 26977 | -1/Command | Destroyed MAIN.C 26982 | -1/Command | Discovered new exit (range 170) 26982 | -1/Command | Discovered new exit (range 53) 26982 | -1/Command | Extracted map data and part IDs from MAIN.C's data core 26986 | -1/Command | Found Exp. Powered Armor 26987 | -1/Command | Found Exp. Powered Armor 27060 | -1/Command | Build established: Alien-Scout 27737 | -1/Command | Found Exp. Armor Integrity Analyzer 27791 | -1/Command | Identified exit to Surface 27804 | *** | Destroyed 0b10! Last Messages --------------- 27712_ B-99 Colossus destroyed. 27712_ Quantum Shear penetrates Earth. 27712_ Quantum Shear penetrates Reinforced Barrier. 27712_ Quantum Shear penetrates Earth. 27712_ Quantum Shear penetrates Reinforced Barrier. 27729_ Sealed Heavy Doors breached. 27736_ Discarded Adv. Target Analyzer. 27737_ Acquired Exp. Armor Integrity Analyzer. 27741_ Acquired 2 matter. 27741_ Acquired 28 matter. 27762_ Quantum Shear penetrates Wall. 27768_ Quantum Shear penetrates Door. 27770_ Quantum Shear penetrates Wave Inhibitor. 27772_ Wave Inhibitor collapses. 27772_ Wave Inhibitor disabled. 27773_ Door collapses. 27791_ EXIT=IDENTIFIED: SURFACE Map ----- +----------------------------------------------------+ | # #????? | | # #????? | | # = #????? | | # * ! #????? | | # #????? | | ###+####### #####/##### # #????? | | # #???# ## # ###+##+#####+##????? | | # #???# ##! # #???# #?????? | | # *#???# ## # #???# #?????? | | # ##### ## # #???# #?????? | | # ## ## # #???# #?????? | | # ## ## + #???# #?????? | | #!! ## " #############+#+####+###???# #?????? | | #! ## #???# #???# #?????? | | # ### ##???# [ #???# #?????? | | ##+###### #????# #####+####??? | | #! #% #????# ! ## #??? | | # # #????# ## #??? | | # # #????# ## #??? | | # # #????# ## #??? | | # = # %#????# ## #??? | | # + #????##################### #??? | | # # #?????????########### # #??? | | #########%=#?????????#X # ] #??? | | *#?????????# + #??? | | #########=%#?????????# @ ## # #??? | | ###???????# #?????????# ## # #??? | | ########### #?######??###### # #??? | | """"" ## ### ######### # #??? | | ""T"" ##!!* # #??? | | ##=[!! " # #??? | | ##|%###* ########## # #?## | | =#"=*##############??# # #?#? | | ##!=#!!! # #### #########?#? | | ####+####"[%|#!!! #*] + #?????????#? | | =*[=!!! "]] # #?????????#? | | =%# # # #?????????#? | | !# # ! # #?????????#? | | + !# # #?????????#? | | " % " + ! # #?????????#? | | " #######= + # # #?????????#? | | #?????# # # # #########?#? | | #?????# "##### # # #?#? | | #?????# "#???# # # #?#? | | #?????# "#???# # ! #?#? | | ###+#?????# ##???# # = #?#? | | #????## ###### # #?#? | | #????# ## # [ # #?#? | | "" #????# "#####+### %#* ""#+"#### | | """#????# T =% ! =% =%!=[ | +----------------------------------------------------+ Best States ------------- Heat Dissipation 110 Energy Generation 59 Energy Capacity 440 Matter Stores 300 Matter Capacity 300 Sight Range 24 Robot Scan Range 20 Terrain Scan Density 10 Additional Mass Support 9 Armor Coverage 1100 Power Shielding 90 Evasion (%) 69 Targeting Accuracy 12 Target Analysis 8 Core Analysis 8 Armor Integrity Analysis 50 Recoil Reduction 4 Offensive Hacking 74 Defensive Hacking 20 Authchip Count 1 Trap Extractor Capacity 12 Item Schematics ----------------- None Robot Schematics ------------------ None Fabricated ------------ Enh. Optical Array | x2 | -7/Factory | Preloaded Cld. VTOL Module | x1 | -7/Factory Hyp. Gauss Rifle | x2 | -7/Factory Cld. VTOL Module | x1 | -7/Factory Cld. VTOL Module | x1 | -7/Factory Cld. VTOL Module | x1 | -7/Factory Cld. VTOL Module | x1 | -7/Factory Cld. VTOL Module | x1 | -7/Factory Cld. VTOL Module | x1 | -6/Factory Hyp. Gauss Cannon | x2 | -6/Factory | Authchip G-50 Soldier | x3 | -5/Factory | Preloaded Adv. Hacking Suite | x1 | -5/Factory Adv. Hacking Suite | x1 | -5/Factory Cld. Impulse Thruster | x1 | -5/Factory Cld. Impulse Thruster | x1 | -5/Factory Cld. Impulse Thruster | x1 | -5/Factory B-60 Warrior | x3 | -4/Factory | Preloaded Exp. Sensor Array | x1 | -4/Factory Cld. Impulse Thruster | x1 | -3/Research Cld. Impulse Thruster | x1 | -3/Research Exp. Sensor Array | x1 | -3/Research Exp. Sensor Array | x1 | -3/Research Repaired ---------- Powered Armor | 30% | -6/Factory Powered Armor | 32% | -6/Factory Cld. VTOL Module | 11% | -6/Extension Cld. VTOL Module | 31% | -5/Factory Powered Armor | 22% | -5/Factory Powered Armor | 10% | -5/Factory Adv. Datajack | 13% | -5/Factory Cld. Impulse Thruster | 99% | -5/Factory | Broken Adv. Sensor Array | 29% | -5/Factory Cld. Impulse Thruster | 51% | -4/Factory Adv. Trap Extractor | 50% | -4/Factory Centrium Medium Armor Plating | 3% | -3/Research Cld. Impulse Thruster | 12% | -3/Research Cld. Impulse Thruster | 13% | -3/Research Cld. Impulse Thruster | 28% | -3/Testing Imp. Diametric Drive | 12% | -1/Command Centrium Medium Armor Plating | 16% | -1/Command Studied --------- Lgt. Quantum Reactor | -2/Quarantine | Hacked Alien Tech Used ----------------- Core Expander Dimensional Node Initializer Integrated Dissipator Core Reset Matrix Terrabomb Integrated Reactor Integrity Redistributor Subatomic Replicator LRC Inertial Stabilizer LRC Energy Well LRC Armor Sigix Shearcannon Achievements -------------- None Challenges ------------ None Game ------ Seed MatterPitchforkComputer Manual? 0 Play Time 04:36:09 Cumulative 1373.8 hours Start 2026.01.24 @ 17:24:29 End 2026.01.24 @ 23:23:19 Sessions 5 Manual Loads 0 Difficulty Rogue Special Mode None Game No. 670 Rogue 662 Adventurer 8 Explorer 0 Win Type 3 Total 349 Types 173/26/82/14/3/4/15/12/8/12 Lore% 99 Gallery% 100 Achievement% 83 Wizard Run 0 Options --------- Layout 2 ASCII 0 Keyboard 0 Movement Arrows Keybinds 0 Fullscreen 1 Font 32/SmallcapsGlow Map View 50x44 Zoom Use 0% Tactical HUD 1 Map Filters NONE Filters NONE Steam 1 RUN: 25de1fa1-951e-4786-a941-01898fb624a1